Workbook

Sheet Cover
A3: Navigator
C5: =Client_Name -> Example
C6: =Model_Name -> Model 08 - Opex Completed.xlsm
C14: Primary Developer: Liam Bastick
C16: General Cover Notes:
C17: Simple example of a Project Finance Model.
C21: Any queries, please e-mail: | G21: liam.bastick@sumproduct.com
C22: Website: | G22: www.sumproduct.com

Sheet Navigator
A1: Navigator
A2: =Model_Name -> Model 08 - Opex Completed.xlsm
A3: Navigator
E4: Error Checks: | G4: =Overall_Error_Check -> 0
B7: 1 | C7: Table of Contents
F9: Cover
F10: Style Guide
F11: Model Parameters
F12: Timing
F13: Scenario Manager
F14: Assumptions
F15: Construction
F16: Operations
F17: Income Statement
F18: Opening Balance Sheet
F19: Balance Sheet
F20: Cash Flow Statement
F21: Lookup
F22: Error Checks
F23: Change Log

Sheet Style Guide
A1: =IF(ISERROR(RIGHT(CELL("filename",A1),LEN(CELL("filename",A1))-FIND("]",CELL("filename",A1)))), "", RIGHT(CELL("filename",A1),LEN(CELL("filename",A1))-FIND("]",CELL("filename",A1)))) -> Style Guide
A2: =Model_Name -> Model 08 - Opex Completed.xlsm
A3: Navigator
E4: Error Checks: | I4: =Overall_Error_Check -> 0
B6: =MAX($B$5:$B5)+1 -> 1 | C6: Formatting of Headers / Dividers
C8: Description | I8: Display | K8: Style Name
C10: Sheet Title | I10: =C10 -> Sheet Title | K10: Sheet Title
C11: Model Name | I11: =C11 -> Model Name | K11: Model Name
C13: Header 1 | I13: =C13 -> Header 1 | K13: Header 1
C14: Header 2 | I14: =C14 -> Header 2 | K14: Header 2
C15: Header 3 | I15: =C15 -> Header 3 | K15: Header 3
C16: Header 4 | I16: =C16 -> Header 4 | K16: Header 4
C18: Notes | I18: =C18 -> Notes | K18: Notes
C20: Table Heading | I20: =C20 -> Table Heading | K20: Table Heading
B23: =MAX($B$5:$B22)+1 -> 2 | C23: Individual Cell Styles
C25: Description | I25: Display | K25: Style Name
C27: Assumption | I27: Assumption | K27: =C27 -> Assumption
C29: Constraint | I29: =C29 -> Constraint | K29: =C29 -> Constraint
C31: Empty | K31: =C31 -> Empty
C33: Error Check | I33: 0 | K33: =C33 -> Error Check
C35: Hyperlink | I35: Hyperlink | K35: =C35 -> Hyperlink
C37: Internal Reference | I37: =Days_in_Year -> 365 | K37: =C37 -> Internal Reference
C39: Line Calculation | I39: 77 | K39: Line Calc
C41: Line Total | I41: =I39 -> 77 | K41: =C41 -> Line Total
C43: Parameter | I43: 365 | K43: =C43 -> Parameter
C45: Range Name Description | I45: Not_Named | K45: =C45 -> Range Name Description
C47: Row Reference | I47: =ROW(C47) -> 47 | K47: Row Ref
C49: Row Summary | I49: =I41 -> 77 | K49: =C49 -> Row Summary
C51: Units | I51: A$ | K51: =C51 -> Units
C53: WIP | K53: =C53 -> WIP
B56: =MAX($B$5:$B55)+1 -> 3 | C56: Numerical Styles
C58: Description | I58: Display | K58: Style Name
C60: Comma | I60: 123456.789 | K60: =C60 -> Comma
C62: Comma [0] | I62: -123456.789 | K62: Comma [0]
C64: Currency | I64: 123456.789 | K64: Currency
C66: Currency [0] | I66: 123456.789 | K66: Currency [0]
C68: Date | I68: =TODAY() -> 2024-03-19 | K68: =C68 -> Date
C70: Date Heading | I70: =TODAY() -> 2024-03-19 | K70: =C70 -> Date Heading
C72: Numbers 0 | I72: -123456.789 | K72: =C72 -> Numbers 0
C74: Percent | I74: 0.5 | K74: =C74 -> Percent

Sheet Model Parameters
A1: =IF(ISERROR(RIGHT(CELL("filename",A1),LEN(CELL("filename",A1))-FIND("]",CELL("filename",A1)))), "", RIGHT(CELL("filename",A1),LEN(CELL("filename",A1))-FIND("]",CELL("filename",A1)))) -> Model Parameters
A2: =Model_Name -> Model 08 - Opex Completed.xlsm
A3: Navigator
E4: Error Checks: | I4: =Overall_Error_Check -> 0
B6: =MAX($B$5:$B5)+1 -> 1 | C6: General
C8: Key Inputs
E10: General
E11: Model Name | G11: =IF(ISERROR(OR(FIND("[",CELL("filename",A1)),FIND("]",CELL("filename",A1)))),"",MID(CELL("filename",A1),FIND("[",CELL("filename",A1))+1,FIND("]",CELL("filename",A1))-FIND("[",CELL("filename",A1))-1)) -> Model 08 - Opex Completed.xlsm
E12: Client Name | G12: Example
B15: =MAX($B$5:$B14)+1 -> 2 | C15: General Range Names
C17: Technical Assumptions
E19: Days in Year | G19: 365 | I19: Days_in_Year
E20: Months in Month | G20: 1 | I20: Months_in_Month
E21: Months in Quarter | G21: 3 | I21: Months_in_Qtr
E22: Months in Half Yr | G22: 6 | I22: Months_in_Half_Yr
E23: Months in Year | G23: 12 | I23: Months_in_Year
E24: Quarters in Year | G24: 4 | I24: Quarters_in_Year
E26: Rounding Accuracy | G26: 5 | I26: Rounding_Accuracy
E28: Very Large Number | G28: 1e+99 | I28: Very_Large_Number
E29: Very Small Number | G29: 1e-08 | I29: Very_Small_Number
E31: Thousand | G31: 1000 | I31: Thousand
B34: =MAX($B$5:$B33)+1 -> 3 | C34: Technical Assumptions
C36: Units
E38: Unit | G38: # | I38: Unit
E39: Currency | G39: US$'000 | I39: Currency
E40: Dollars | G40: $ | I40: Dollars
E41: Megawatt Hour | G41: MWh | I41: Megawatt_Hours
E42: Dollars per Megawatt Hour | G42: $/MWh | I42: Dollars_per_Megawatt_Hour
E43: Boolean | G43: [1,0] | I43: Boolean
E44: Percentage | G44: % | I44: Percentage
E45: No of Days | G45: # Days | I45: No_of_Days
E46: Year | G46: Year | I46: Year
E47: No of Years | G47: # Year(s) | I47: No_of_Years
E48: Multiplier | G48: x | I48: Multiplier
E49: Weight | G49: kg | I49: Weight
E50: Price / Weight | G50: $/kg | I50: Price_Weight
C53: Financial Statement Abbreviations
E55: Income Statement | G55: IS | I55: Income_Statement
E56: Balance Sheet | G56: BS | I56: Balance_Sheet
E57: Cash Flow Statement | G57: CFS | I57: Cash_Flow_Statement
C60: Tax Depreciation
E62: Declining Balance Multiple | G62: 2 | I62: Declining_Balance_Multiple

Sheet Timing
A1: =IF(ISERROR(RIGHT(CELL("filename",A1),LEN(CELL("filename",A1))-FIND("]",CELL("filename",A1)))), "", RIGHT(CELL("filename",A1),LEN(CELL("filename",A1))-FIND("]",CELL("filename",A1)))) -> Timing
A2: =Model_Name -> Model 08 - Opex Completed.xlsm
A3: Navigator
B4: Error Checks: | F4: =Overall_Error_Check -> 0
J5: =J$7 -> 2024-06-30 | K5: =K$7 -> 2025-06-30 | L5: 2026-06-30 | M5: 2027-06-30 | N5: 2028-06-30 | O5: 2029-06-30 | P5: 2030-06-30 | Q5: 2031-06-30 | R5: 2032-06-30 | S5: 2033-06-30
C6: Start Date | J6: =IF(J$11=1,Model_Start_Date,I$7+1) -> 2023-07-01 | K6: 2024-07-01 | L6: 2025-07-01 | M6: 2026-07-01 | N6: 2027-07-01 | O6: 2028-07-01 | P6: 2029-07-01 | Q6: 2030-07-01 | R6: 2031-07-01 | S6: 2032-07-01
C7: End Date | J7: =EOMONTH(J$6,MOD(Periodicity+Reporting_Month_Factor-MONTH(J$6),Periodicity)) -> 2024-06-30 | K7: 2025-06-30 | L7: 2026-06-30 | M7: 2027-06-30 | N7: 2028-06-30 | O7: 2029-06-30 | P7: 2030-06-30 | Q7: 2031-06-30 | R7: 2032-06-30 | S7: 2033-06-30
C8: Number of Days | J8: =J7-J6+1 -> 366 | K8: =K7-K6+1 -> 365 | L8: 365 | M8: 365 | N8: 366 | O8: 365 | P8: 365 | Q8: 365 | R8: 366 | S8: 365
C9: Construction period | J9: =IF(J$11<=ConstructionPeriod,J$11,) -> 1 | K9: 2 | L9: 3 | M9: 0 | N9: 0 | O9: 0 | P9: 0 | Q9: 0 | R9: 0 | S9: 0
C10: Operations period | J10: =IF(J$11<=ConstructionPeriod,,J$11-ConstructionPeriod) -> 0 | K10: 0 | L10: 0 | M10: 1 | N10: 2 | O10: 3 | P10: 4 | Q10: 5 | R10: 6 | S10: 7
C11: Counter | J11: =N(I$11)+1 -> 1 | K11: =N(J$11)+1 -> 2 | L11: 3 | M11: 4 | N11: 5 | O11: 6 | P11: 7 | Q11: 8 | R11: 9 | S11: 10
B13: =MAX($B$12:$B12)+1 -> 1 | C13: =A1 -> Timing
C15: Data (do not change once modelling has commenced)
D17: Model Start Date | H17: 2023-07-01
D19: Number of Months in a Full Period | H19: 12
D21: Example Reporting Month | H21: 6 | I21: ="e.g. "&TEXT(DATE(YEAR(Model_Start_Date)+IF(Example_Reporting_Month<MONTH(Model_Start_Date),1,0),Example_Reporting_Month+1,1)-1,"dd-Mmm-yy") -> e.g. 30-Jun-24
D23: Reporting Month Factor | H23: =MOD(Example_Reporting_Month-1,Periodicity)+1 -> 6
D25: Months per Year | H25: 12
D27: Construction year(s) | H27: 3

Sheet Scenario Manager
A1: =IF(ISERROR(RIGHT(CELL("filename",A1),LEN(CELL("filename",A1))-FIND("]",CELL("filename",A1)))), "", RIGHT(CELL("filename",A1),LEN(CELL("filename",A1))-FIND("]",CELL("filename",A1)))) -> Scenario Manager
A2: =Model_Name -> Model 08 - Opex Completed.xlsm
A3: Navigator
B4: Error Checks: | F4: =Overall_Error_Check -> 0
B13: =MAX($B$12:$B12)+1 -> 1 | C13: =A1 -> Scenario Manager
C15: Assumptions
H17: Scenario
E18: Scenario Selection | G18: =Unit -> # | H18: 1
H20: ="Scenario "&TEXT(Active_Scenario,"0") -> Scenario 1 | J20: =N(I20)+1 -> 1 | K20: =N(J20)+1 -> 2 | L20: 3 | M20: 4 | N20: 5 | O20: 6 | P20: 7 | Q20: 8 | R20: 9 | S20: 10
E21: Construction cost sensitivity | G21: =Percentage -> % | H21: =IF(Active_Scenario>0,OFFSET($I21,,Active_Scenario),J21) -> 0 | J21: 0 | K21: 0.1 | L21: -0.1 | M21: 0 | N21: 0 | O21: 0 | P21: 0 | Q21: 0 | R21: 0 | S21: 0
E22: Generation profile in use | H22: =IF(Active_Scenario>0,OFFSET($I22,,Active_Scenario),J22) -> P90 | J22: P90 | K22: P50 | L22: P10 | M22: P90 | N22: P90 | O22: P90 | P22: P90 | Q22: P90 | R22: P90 | S22: P90
E23: Electricity sales price sensitivity | G23: =Percentage -> % | H23: 0 | J23: 0 | K23: 0.1 | L23: -0.1 | M23: 0 | N23: 0 | O23: 0 | P23: 0 | Q23: 0 | R23: 0 | S23: 0
E24: COGS sensitivity | G24: =Percentage -> % | H24: 0 | J24: 0 | K24: 0.1 | L24: -0.1 | M24: 0 | N24: 0 | O24: 0 | P24: 0 | Q24: 0 | R24: 0 | S24: 0
E25: Loan term | G25: =No_of_Years -> # Year(s) | H25: 6 | J25: 6 | K25: 7 | L25: 6 | M25: 6 | N25: 6 | O25: 6 | P25: 6 | Q25: 6 | R25: 6 | S25: 6
E26: Debt margin | G26: =Percentage -> % | H26: 0.03 | J26: 0.03 | K26: 0.02 | L26: 0.03 | M26: 0.03 | N26: 0.03 | O26: 0.03 | P26: 0.03 | Q26: 0.03 | R26: 0.03 | S26: 0.03
E27: Post Tax Cost of Equity | G27: % | H27: 0.15 | J27: 0.15 | K27: 0.14 | L27: 0.15 | M27: 0.15 | N27: 0.15 | O27: 0.15 | P27: 0.15 | Q27: 0.15 | R27: 0.15 | S27: 0.15
E28: Pre-Tax Cost of Debt | G28: % | H28: 0.08 | J28: 0.08 | K28: 0.075 | L28: 0.08 | M28: 0.08 | N28: 0.08 | O28: 0.08 | P28: 0.08 | Q28: 0.08 | R28: 0.08 | S28: 0.08
E29: Debt as a Proportion of Debt + Equity | G29: % | H29: 0.3 | J29: 0.3 | K29: 0.35 | L29: 0.3 | M29: 0.3 | N29: 0.3 | O29: 0.3 | P29: 0.3 | Q29: 0.3 | R29: 0.3 | S29: 0.3
E30: Growth Rate | G30: % | H30: 0.02 | J30: 0.02 | K30: 0.03 | L30: 0.02 | M30: 0.02 | N30: 0.02 | O30: 0.02 | P30: 0.02 | Q30: 0.02 | R30: 0.02 | S30: 0.02
C33: Scenario results
H35: =H20 -> Scenario 1 | J35: =J20 -> 1 | K35: 2 | L35: 3 | M35: 4 | N35: 5 | O35: 6 | P35: 7 | Q35: 8 | R35: 9 | S35: 10
E36: Closing cash balance | G36: =Currency -> US$'000
E37: Equity Value | G37: =Currency -> US$'000
E38: Enterprise Value | G38: =Currency -> US$'000
E39: Minimum DSCR | G39: x
E40: Minimum LLCR | G40: x
E41: Minimum PLCR | G41: x

Sheet Assumptions
A1: =IF(ISERROR(RIGHT(CELL("filename",A1),LEN(CELL("filename",A1))-FIND("]",CELL("filename",A1)))), "", RIGHT(CELL("filename",A1),LEN(CELL("filename",A1))-FIND("]",CELL("filename",A1)))) -> Assumptions
A2: =Model_Name -> Model 08 - Opex Completed.xlsm
A3: Navigator
B4: Error Checks: | F4: =Overall_Error_Check -> 0
J5: =Timing!J5 -> 2024-06-30 | K5: =Timing!K5 -> 2025-06-30 | L5: =Timing!L5 -> 2026-06-30 | M5: =Timing!M5 -> 2027-06-30 | N5: =Timing!N5 -> 2028-06-30 | O5: =Timing!O5 -> 2029-06-30 | P5: =Timing!P5 -> 2030-06-30 | Q5: =Timing!Q5 -> 2031-06-30 | R5: =Timing!R5 -> 2032-06-30 | S5: =Timing!S5 -> 2033-06-30
C6: =Timing!C6 -> Start Date | J6: =Timing!J6 -> 2023-07-01 | K6: =Timing!K6 -> 2024-07-01 | L6: =Timing!L6 -> 2025-07-01 | M6: =Timing!M6 -> 2026-07-01 | N6: =Timing!N6 -> 2027-07-01 | O6: =Timing!O6 -> 2028-07-01 | P6: =Timing!P6 -> 2029-07-01 | Q6: =Timing!Q6 -> 2030-07-01 | R6: =Timing!R6 -> 2031-07-01 | S6: =Timing!S6 -> 2032-07-01
C7: =Timing!C7 -> End Date | J7: =Timing!J7 -> 2024-06-30 | K7: =Timing!K7 -> 2025-06-30 | L7: =Timing!L7 -> 2026-06-30 | M7: =Timing!M7 -> 2027-06-30 | N7: =Timing!N7 -> 2028-06-30 | O7: =Timing!O7 -> 2029-06-30 | P7: =Timing!P7 -> 2030-06-30 | Q7: =Timing!Q7 -> 2031-06-30 | R7: =Timing!R7 -> 2032-06-30 | S7: =Timing!S7 -> 2033-06-30
C8: =Timing!C8 -> Number of Days | J8: =Timing!J8 -> 366 | K8: =Timing!K8 -> 365 | L8: =Timing!L8 -> 365 | M8: =Timing!M8 -> 365 | N8: =Timing!N8 -> 366 | O8: =Timing!O8 -> 365 | P8: =Timing!P8 -> 365 | Q8: =Timing!Q8 -> 365 | R8: =Timing!R8 -> 366 | S8: =Timing!S8 -> 365
C9: =Timing!C9 -> Construction period | J9: =Timing!J9 -> 1 | K9: =Timing!K9 -> 2 | L9: =Timing!L9 -> 3 | M9: =Timing!M9 -> 0 | N9: =Timing!N9 -> 0 | O9: =Timing!O9 -> 0 | P9: =Timing!P9 -> 0 | Q9: =Timing!Q9 -> 0 | R9: =Timing!R9 -> 0 | S9: =Timing!S9 -> 0
C10: =Timing!C10 -> Operations period | J10: =Timing!J10 -> 0 | K10: =Timing!K10 -> 0 | L10: =Timing!L10 -> 0 | M10: =Timing!M10 -> 1 | N10: =Timing!N10 -> 2 | O10: =Timing!O10 -> 3 | P10: =Timing!P10 -> 4 | Q10: =Timing!Q10 -> 5 | R10: =Timing!R10 -> 6 | S10: =Timing!S10 -> 7
C11: =Timing!C11 -> Counter | J11: =Timing!J11 -> 1 | K11: =Timing!K11 -> 2 | L11: =Timing!L11 -> 3 | M11: =Timing!M11 -> 4 | N11: =Timing!N11 -> 5 | O11: =Timing!O11 -> 6 | P11: =Timing!P11 -> 7 | Q11: =Timing!Q11 -> 8 | R11: =Timing!R11 -> 9 | S11: =Timing!S11 -> 10
B13: =MAX($B$12:$B12)+1 -> 1 | C13: Construction
C15: Construction costs
D17: Construction costs
E19: Modules | G19: =Currency -> US$'000 | J19: 1000 | K19: 2000 | L19: 3000 | U19: =IFERROR(_xlfn.FORMULATEXT(J19),"") -> 
E20: Inverters | G20: US$'000 | J20: 1000 | K20: 2000 | L20: 3000 | U20: =IFERROR(_xlfn.FORMULATEXT(J20),"") -> 
E21: Racking and mounting | G21: US$'000 | J21: 1000 | K21: 2000 | L21: 3000
E22: Grid connection | G22: US$'000 | J22: 1000 | K22: 2000 | L22: 3000
E23: Other hardware | G23: US$'000
E24: Installation | G24: US$'000
E25: Other | G25: US$'000
E26: Total | G26: US$'000 | J26: =SUM(J19:J25) -> 4000 | K26: =SUM(K19:K25) -> 8000 | L26: 12000 | M26: 0 | N26: 0 | O26: 0 | P26: 0 | Q26: 0 | R26: 0 | S26: 0 | U26: =SUM(J19:J25)
E28: Construction cost sensitivity | G28: =Percentage -> % | I28: ='Scenario Manager'!$H$21 -> 0 | U28: =IFERROR(_xlfn.FORMULATEXT(I28),"") -> ='Scenario Manager'!$H$21
E30: Modules in use | G30: =Currency -> US$'000 | J30: =J19*(1+$I$28)*(J$9>0) -> 1000 | K30: =K19*(1+$I$28)*(K$9>0) -> 2000 | L30: 3000 | M30: 0 | N30: 0 | O30: 0 | P30: 0 | Q30: 0 | R30: 0 | S30: 0 | U30: =J19*(1+$I$28)*(J$9>0)
E31: Inverters in use | G31: US$'000 | J31: =J20*(1+$I$28)*(J$9>0) -> 1000 | K31: 2000 | L31: 3000 | M31: 0 | N31: 0 | O31: 0 | P31: 0 | Q31: 0 | R31: 0 | S31: 0 | U31: =J20*(1+$I$28)*(J$9>0)
E32: Racking and mounting in use | G32: US$'000 | J32: 1000 | K32: 2000 | L32: 3000 | M32: 0 | N32: 0 | O32: 0 | P32: 0 | Q32: 0 | R32: 0 | S32: 0 | U32: =J21*(1+$I$28)*(J$9>0)
E33: Grid connection in use | G33: US$'000 | J33: 1000 | K33: 2000 | L33: 3000 | M33: 0 | N33: 0 | O33: 0 | P33: 0 | Q33: 0 | R33: 0 | S33: 0 | U33: =J22*(1+$I$28)*(J$9>0)
E34: Other hardware in use | G34: US$'000 | J34: 0 | K34: 0 | L34: 0 | M34: 0 | N34: 0 | O34: 0 | P34: 0 | Q34: 0 | R34: 0 | S34: 0 | U34: =J23*(1+$I$28)*(J$9>0)
E35: Installation in use | G35: US$'000 | J35: 0 | K35: 0 | L35: 0 | M35: 0 | N35: 0 | O35: 0 | P35: 0 | Q35: 0 | R35: 0 | S35: 0 | U35: =J24*(1+$I$28)*(J$9>0)
E36: Other in use | G36: US$'000 | J36: 0 | K36: 0 | L36: 0 | M36: 0 | N36: 0 | O36: 0 | P36: 0 | Q36: 0 | R36: 0 | S36: 0 | U36: =J25*(1+$I$28)*(J$9>0)
E37: Total in use | G37: US$'000 | J37: =SUM(J30:J36) -> 4000 | K37: =SUM(K30:K36) -> 8000 | L37: 12000 | M37: 0 | N37: 0 | O37: 0 | P37: 0 | Q37: 0 | R37: 0 | S37: 0 | U37: =SUM(J30:J36)
C41: Debt
D43: Funding
E45: Initial equity | G45: =Currency -> US$'000 | I45: 6000
E46: Debt limit | G46: =Currency -> US$'000 | I46: 16000
D48: Debt terms
E50: Margin | G50: =Percentage&" p.a." -> % p.a. | I50: 0.035
E51: Establishment fee | G51: =Percentage -> % | I51: 0.02
E52: Commitment fee | G52: =Percentage&" of margin" -> % of margin | I52: 0.5
B55: =MAX($B$12:$B54)+1 -> 2 | C55: Operations
C57: Generation
D59: Expected generation
E61: Annual generation
E62: P10 | M62: 65000 | N62: 65000 | O62: 65000 | P62: 65000 | Q62: 65000 | R62: 65000 | S62: 65000
E63: P50 | M63: 60000 | N63: 60000 | O63: 60000 | P63: 60000 | Q63: 60000 | R63: 60000 | S63: 60000
E64: P90 | M64: 55000 | N64: 55000 | O64: 55000 | P64: 55000 | Q64: 55000 | R64: 55000 | S64: 55000
E65: Annual generation in use | G65: =Megawatt_Hours -> MWh | I65: ='Scenario Manager'!$H$22 -> P90 | J65: =IFERROR(INDEX(J62:J64,MATCH($I65,LU_Gen_Profiles,0)),J63) -> 0 | K65: 0 | L65: 0 | M65: 55000 | N65: 55000 | O65: 55000 | P65: 55000 | Q65: 55000 | R65: 55000 | S65: 55000 | U65: =IFERROR(_xlfn.FORMULATEXT(J65),"") -> =IFERROR(INDEX(J62:J64,MATCH($I65,LU_Gen_Profiles,0)),J63)
E67: Annual degradation | G67: =Percentage -> % | I67: 0.02
C69: Revenue and related
D71: Sales
E73: Electricity sales price | G73: =Dollars_per_Megawatt_Hour -> $/MWh | M73: 100 | N73: 103 | O73: 106 | P73: 109 | Q73: 112 | R73: 115 | S73: 118
E75: Electricity sales price sensitivity | G75: =Percentage -> % | I75: ='Scenario Manager'!$H$23 -> 0 | U75: =IFERROR(_xlfn.FORMULATEXT(I75),"") -> ='Scenario Manager'!$H$23
U76: =IFERROR(_xlfn.FORMULATEXT(I76),"") -> 
E77: Electricity sales price in use | G77: =Dollars_per_Megawatt_Hour -> $/MWh | J77: =J73*(1+$I75) -> 0 | K77: =K73*(1+$I75) -> 0 | L77: 0 | M77: 100 | N77: 103 | O77: 106 | P77: 109 | Q77: 112 | R77: 115 | S77: 118 | U77: =IFERROR(_xlfn.FORMULATEXT(J77),"") -> =J73*(1+$I75)
D79: Working capital
E81: Days receivable | G81: =No_of_Days -> # Days | J81: 60 | K81: 60 | L81: 60 | M81: 60 | N81: 60 | O81: 60 | P81: 60 | Q81: 60 | R81: 60 | S81: 60
C84: COGS and related
D86: COGS
E88: Cost per MWh | G88: =Dollars_per_Megawatt_Hour -> $/MWh | M88: 20 | N88: 20 | O88: 20 | P88: 20 | Q88: 20 | R88: 20 | S88: 20
E90: COGS sensitivity | G90: =Percentage -> % | I90: ='Scenario Manager'!$H$24 -> 0 | U90: =IFERROR(_xlfn.FORMULATEXT(I90),"") -> ='Scenario Manager'!$H$24
E92: Cost per MWh in use | G92: =Dollars_per_Megawatt_Hour -> $/MWh | J92: =J88*(1+$I90) -> 0 | K92: =K88*(1+$I90) -> 0 | L92: 0 | M92: 20 | N92: 20 | O92: 20 | P92: 20 | Q92: 20 | R92: 20 | S92: 20 | U92: =J88*(1+$I90)
D94: Working capital
E96: Days payable | G96: =No_of_Days -> # Days | J96: 90 | K96: 90 | L96: 90 | M96: 90 | N96: 90 | O96: 90 | P96: 90 | Q96: 90 | R96: 90 | S96: 90
C99: Opex and cash payments
C100: All expenses are assumed to be paid as they are incurred
D102: Opex
E104: Projected costs | G104: =Currency -> US$'000 | M104: 200 | N104: 225 | O104: 250 | P104: 275 | Q104: 300 | R104: 325 | S104: 350
C107: Capex and related
D109: Capital expenditure
E111: Capital expenditure | G111: =Currency -> US$'000 | P111: 500 | Q111: 1000
D113: Accounting depreciation - straight line
I114: Remaining life | J114: Depreciation rate
E115: Construction assets | I115: 10 | J115: =IF(I115=0,,1/I115) -> 0.1
E116: Capital expenditure | I116: 4 | J116: =IF(I116=0,,1/I116) -> 0.25
D118: MRA
E120: MRA hold-back | G120: =No_of_Years -> # Year(s) | I120: 4
C123: Debt and related
C124: Movements are assumed to occur at the end of each period
D126: Interest
E128: BBSW | G128: =Percentage&" p.a." -> % p.a. | J128: 0.002 | K128: 0.0015 | L128: 0.003 | M128: 0.005 | N128: 0.0075 | O128: 0.011 | P128: 0.014 | Q128: 0.015 | R128: 0.015 | S128: 0.015
D130: Terms
E132: Loan term | G132: =No_of_Years -> # Year(s)
E133: Margin | G133: =Percentage&" p.a." -> % p.a.
E135: Repayment method | G135: Selection | I135: Annuity
D137: Interest receivable
E139: Interest receivable? | G139: Selection | I139: No
E140: Interest receivable rate | G140: =Percentage -> % | M140: 0.01 | N140: 0.01 | O140: 0.01 | P140: 0.01 | Q140: 0.01 | R140: 0.01 | S140: 0.01
D142: DSCR sculpting target
E144: DSCR sculpting | G144: x | I144: 1.5
D146: DSRA
E148: DSRA hold-back | G148: =No_of_Years -> # Year(s) | I148: 1
E149: Initial DSRA funding | G149: =Currency -> US$'000 | I149: 5500
D151: Working capital facility
E153: Facility limit | G153: =Currency -> US$'000 | I153: 500
E154: Interest rate | G154: =Percentage -> % | I154: 0.1
D156: DSCR Inputs
E158: Lock-up ratio | G158: x | I158: 1.15
E159: Lock-up periods | G159: =Unit -> # | I159: 2
E162: Cash sweep? | G162: Selection | I162: No
E163: Cash sweep ratio | G163: x | I163: 1.3
E164: Excess sweep % | G164: =Percentage -> % | I164: 0.35
C167: Convertible debt
C168: Movements are assumed to occur at the end of each period
D170: Terms
E172: Loan term | G172: =No_of_Years -> # Year(s) | I172: 5
E173: Margin | G173: =Percentage&" p.a." -> % p.a. | I173: 0.02
D175: Repayment
E177: Portion of cash to sweep | G177: =Percentage -> % | I177: 1
C180: Taxation
D182: Tax rate
E184: Tax rate | G184: =Percentage -> % | I184: 0.3
D186: Permanent differences
E188: Non-assessable revenue | G188: =Currency -> US$'000 | M188: 25 | N188: 25 | O188: 25 | P188: 25 | Q188: 25 | R188: 25 | S188: 25
E189: Disallowable expenses | G189: =Currency -> US$'000 | M189: 30 | N189: 30 | O189: 30 | P189: 30 | Q189: 30 | R189: 30 | S189: 30
D191: Tax payable and paid
E193: Payment delay | G193: =No_of_Years -> # Year(s) | I193: 1
C196: Ordinary equity and related
D198: Dividends
D199: Dividends are assumed to be paid in the period after they are declared
E201: Dividend payout ratio | G201: =Percentage -> % | J201: 1 | K201: 1 | L201: 1 | M201: 1 | N201: 1 | O201: 1 | P201: 1 | Q201: 1 | R201: 1 | S201: 1

Sheet Construction
A1: =IF(ISERROR(RIGHT(CELL("filename",A1),LEN(CELL("filename",A1))-FIND("]",CELL("filename",A1)))), "", RIGHT(CELL("filename",A1),LEN(CELL("filename",A1))-FIND("]",CELL("filename",A1)))) -> Construction
A2: =Model_Name -> Model 08 - Opex Completed.xlsm
A3: Navigator
B4: Error Checks: | F4: =Overall_Error_Check -> 0
J5: =Timing!J5 -> 2024-06-30 | K5: =Timing!K5 -> 2025-06-30 | L5: =Timing!L5 -> 2026-06-30 | M5: =Timing!M5 -> 2027-06-30 | N5: =Timing!N5 -> 2028-06-30 | O5: =Timing!O5 -> 2029-06-30 | P5: =Timing!P5 -> 2030-06-30 | Q5: =Timing!Q5 -> 2031-06-30 | R5: =Timing!R5 -> 2032-06-30 | S5: =Timing!S5 -> 2033-06-30
C6: =Timing!C6 -> Start Date | J6: =Timing!J6 -> 2023-07-01 | K6: =Timing!K6 -> 2024-07-01 | L6: =Timing!L6 -> 2025-07-01 | M6: =Timing!M6 -> 2026-07-01 | N6: =Timing!N6 -> 2027-07-01 | O6: =Timing!O6 -> 2028-07-01 | P6: =Timing!P6 -> 2029-07-01 | Q6: =Timing!Q6 -> 2030-07-01 | R6: =Timing!R6 -> 2031-07-01 | S6: =Timing!S6 -> 2032-07-01
C7: =Timing!C7 -> End Date | J7: =Timing!J7 -> 2024-06-30 | K7: =Timing!K7 -> 2025-06-30 | L7: =Timing!L7 -> 2026-06-30 | M7: =Timing!M7 -> 2027-06-30 | N7: =Timing!N7 -> 2028-06-30 | O7: =Timing!O7 -> 2029-06-30 | P7: =Timing!P7 -> 2030-06-30 | Q7: =Timing!Q7 -> 2031-06-30 | R7: =Timing!R7 -> 2032-06-30 | S7: =Timing!S7 -> 2033-06-30
C8: =Timing!C8 -> Number of Days | J8: =Timing!J8 -> 366 | K8: =Timing!K8 -> 365 | L8: =Timing!L8 -> 365 | M8: =Timing!M8 -> 365 | N8: =Timing!N8 -> 366 | O8: =Timing!O8 -> 365 | P8: =Timing!P8 -> 365 | Q8: =Timing!Q8 -> 365 | R8: =Timing!R8 -> 366 | S8: =Timing!S8 -> 365
C9: =Timing!C9 -> Construction period | J9: =Timing!J9 -> 1 | K9: =Timing!K9 -> 2 | L9: =Timing!L9 -> 3 | M9: =Timing!M9 -> 0 | N9: =Timing!N9 -> 0 | O9: =Timing!O9 -> 0 | P9: =Timing!P9 -> 0 | Q9: =Timing!Q9 -> 0 | R9: =Timing!R9 -> 0 | S9: =Timing!S9 -> 0
C10: =Timing!C10 -> Operations period | J10: =Timing!J10 -> 0 | K10: =Timing!K10 -> 0 | L10: =Timing!L10 -> 0 | M10: =Timing!M10 -> 1 | N10: =Timing!N10 -> 2 | O10: =Timing!O10 -> 3 | P10: =Timing!P10 -> 4 | Q10: =Timing!Q10 -> 5 | R10: =Timing!R10 -> 6 | S10: =Timing!S10 -> 7
C11: =Timing!C11 -> Counter | J11: =Timing!J11 -> 1 | K11: =Timing!K11 -> 2 | L11: =Timing!L11 -> 3 | M11: =Timing!M11 -> 4 | N11: =Timing!N11 -> 5 | O11: =Timing!O11 -> 6 | P11: =Timing!P11 -> 7 | Q11: =Timing!Q11 -> 8 | R11: =Timing!R11 -> 9 | S11: =Timing!S11 -> 10
B13: =MAX($B$12:$B12)+1 -> 1 | C13: =A1 -> Construction
C15: Construction
D17: Construction costs
E19: Modules in use | G19: =Currency -> US$'000 | J19: =Assumptions!J30 -> 1000 | K19: =Assumptions!K30 -> 2000 | L19: =Assumptions!L30 -> 3000 | M19: =Assumptions!M30 -> 0 | N19: =Assumptions!N30 -> 0 | O19: =Assumptions!O30 -> 0 | P19: =Assumptions!P30 -> 0 | Q19: =Assumptions!Q30 -> 0 | R19: =Assumptions!R30 -> 0 | S19: =Assumptions!S30 -> 0 | U19: =IFERROR(_xlfn.FORMULATEXT(J19),"") -> =Assumptions!J30
E20: Inverters in use | G20: US$'000 | J20: =Assumptions!J31 -> 1000 | K20: =Assumptions!K31 -> 2000 | L20: =Assumptions!L31 -> 3000 | M20: =Assumptions!M31 -> 0 | N20: =Assumptions!N31 -> 0 | O20: =Assumptions!O31 -> 0 | P20: =Assumptions!P31 -> 0 | Q20: =Assumptions!Q31 -> 0 | R20: =Assumptions!R31 -> 0 | S20: =Assumptions!S31 -> 0 | U20: =Assumptions!J31
E21: Racking and mounting in use | G21: US$'000 | J21: =Assumptions!J32 -> 1000 | K21: =Assumptions!K32 -> 2000 | L21: =Assumptions!L32 -> 3000 | M21: =Assumptions!M32 -> 0 | N21: =Assumptions!N32 -> 0 | O21: =Assumptions!O32 -> 0 | P21: =Assumptions!P32 -> 0 | Q21: =Assumptions!Q32 -> 0 | R21: =Assumptions!R32 -> 0 | S21: =Assumptions!S32 -> 0 | U21: =Assumptions!J32
E22: Grid connection in use | G22: US$'000 | J22: =Assumptions!J33 -> 1000 | K22: =Assumptions!K33 -> 2000 | L22: =Assumptions!L33 -> 3000 | M22: =Assumptions!M33 -> 0 | N22: =Assumptions!N33 -> 0 | O22: =Assumptions!O33 -> 0 | P22: =Assumptions!P33 -> 0 | Q22: =Assumptions!Q33 -> 0 | R22: =Assumptions!R33 -> 0 | S22: =Assumptions!S33 -> 0 | U22: =Assumptions!J33
E23: Other hardware in use | G23: US$'000 | J23: =Assumptions!J34 -> 0 | K23: =Assumptions!K34 -> 0 | L23: =Assumptions!L34 -> 0 | M23: =Assumptions!M34 -> 0 | N23: =Assumptions!N34 -> 0 | O23: =Assumptions!O34 -> 0 | P23: =Assumptions!P34 -> 0 | Q23: =Assumptions!Q34 -> 0 | R23: =Assumptions!R34 -> 0 | S23: =Assumptions!S34 -> 0 | U23: =Assumptions!J34
E24: Installation in use | G24: US$'000 | J24: =Assumptions!J35 -> 0 | K24: =Assumptions!K35 -> 0 | L24: =Assumptions!L35 -> 0 | M24: =Assumptions!M35 -> 0 | N24: =Assumptions!N35 -> 0 | O24: =Assumptions!O35 -> 0 | P24: =Assumptions!P35 -> 0 | Q24: =Assumptions!Q35 -> 0 | R24: =Assumptions!R35 -> 0 | S24: =Assumptions!S35 -> 0 | U24: =Assumptions!J35
E25: Other in use | G25: US$'000 | J25: =Assumptions!J36 -> 0 | K25: =Assumptions!K36 -> 0 | L25: =Assumptions!L36 -> 0 | M25: =Assumptions!M36 -> 0 | N25: =Assumptions!N36 -> 0 | O25: =Assumptions!O36 -> 0 | P25: =Assumptions!P36 -> 0 | Q25: =Assumptions!Q36 -> 0 | R25: =Assumptions!R36 -> 0 | S25: =Assumptions!S36 -> 0 | U25: =Assumptions!J36
E26: Total | G26: US$'000 | J26: =SUM(J19:J25) -> 4000 | K26: =SUM(K19:K25) -> 8000 | L26: 12000 | M26: 0 | N26: 0 | O26: 0 | P26: 0 | Q26: 0 | R26: 0 | S26: 0 | U26: =SUM(J19:J25)
E28: Construction costs applied | G28: =Currency -> US$'000 | J28: =J26 -> 4000 | K28: =K26 -> 8000 | L28: 12000 | M28: 0 | N28: 0 | O28: 0 | P28: 0 | Q28: 0 | R28: 0 | S28: 0 | U28: =J26
D30: Funding costs
E32: Interest during construction | G32: =Currency -> US$'000 | J32: =J80+J110 -> 0 | K32: =K80+K110 -> 0 | L32: 261.44 | M32: 0 | N32: 0 | O32: 0 | P32: 0 | Q32: 0 | R32: 0 | S32: 0 | U32: =J80+J110
E33: Establishment fees | G33: =Currency -> US$'000 | J33: =J86 -> 320 | K33: =K86 -> 0 | L33: 0 | M33: 0 | N33: 0 | O33: 0 | P33: 0 | Q33: 0 | R33: 0 | S33: 0 | U33: =J86
E34: Commitment fees | G34: =Currency -> US$'000 | J34: =J92 -> 280 | K34: =K92 -> 280 | L34: 159.6 | M34: 0 | N34: 0 | O34: 0 | P34: 0 | Q34: 0 | R34: 0 | S34: 0 | U34: =J92
E35: Total | G35: =Currency -> US$'000 | J35: =SUM(J32:J34) -> 600 | K35: =SUM(K32:K34) -> 280 | L35: 421.04 | M35: 0 | N35: 0 | O35: 0 | P35: 0 | Q35: 0 | R35: 0 | S35: 0 | U35: =SUM(J32:J34)
D37: Cost waterfall
E39: Construction costs | G39: =Currency -> US$'000 | J39: =J28+J35 -> 4600 | K39: =K28+K35 -> 8280 | L39: 12421.04 | M39: 0 | N39: 0 | O39: 0 | P39: 0 | Q39: 0 | R39: 0 | S39: 0 | U39: =J28+J35
E40: DSRA initial funding | G40: US$'000 | I40: =Assumptions!I149 -> 5500 | J40: =IF(J$9=MAX($J$9:$S$9),$I40,0) -> 0 | K40: =IF(K$9=MAX($J$9:$S$9),$I40,0) -> 0 | L40: 5500 | M40: 0 | N40: 0 | O40: 0 | P40: 0 | Q40: 0 | R40: 0 | S40: 0 | U40: =IF(J$9=MAX($J$9:$S$9),$I40,0)
E41: Less: Equity funding | G41: US$'000 | J41: =-MIN(SUM(J39:J40),J58) -> -4600 | K41: =-MIN(SUM(K39:K40),K58) -> -1400 | L41: 0 | M41: 0 | N41: 0 | O41: 0 | P41: 0 | Q41: 0 | R41: 0 | S41: 0 | U41: =-MIN(SUM(J39:J40),J58)
E42: Costs remaining after equity | G42: US$'000 | J42: =SUM(J39:J41) -> 0 | K42: =SUM(K39:K41) -> 6880 | L42: 17921.04 | M42: 0 | N42: 0 | O42: 0 | P42: 0 | Q42: 0 | R42: 0 | S42: 0 | U42: =SUM(J39:J41)
E43: Less: Debt funding | G43: US$'000 | J43: =-MIN(J42,J72) -> 0 | K43: =-MIN(K42,K72) -> -6880 | L43: -9120 | M43: 0 | N43: 0 | O43: 0 | P43: 0 | Q43: 0 | R43: 0 | S43: 0 | U43: =-MIN(J42,J72)
E44: Costs remaining after debt | G44: US$'000 | J44: =SUM(J42:J43) -> 0 | K44: =SUM(K42:K43) -> 0 | L44: 8801.04 | M44: 0 | N44: 0 | O44: 0 | P44: 0 | Q44: 0 | R44: 0 | S44: 0 | U44: =SUM(J42:J43)
C47: Equity
D49: Control account
E51: Opening balance | G51: =Currency -> US$'000 | J51: =I54 -> 0 | K51: =J54 -> 4600 | L51: 6000 | M51: 0 | N51: 0 | O51: 0 | P51: 0 | Q51: 0 | R51: 0 | S51: 0 | T51: =Balance_Sheet -> BS | U51: =I54
E52: Equity funding | G52: =Currency -> US$'000 | J52: =-J41 -> 4600 | K52: =-K41 -> 1400 | L52: 0 | M52: 0 | N52: 0 | O52: 0 | P52: 0 | Q52: 0 | R52: 0 | S52: 0 | T52: =Cash_Flow_Statement -> CFS | U52: =-J41
E53: Transfer to operations | G53: =Currency -> US$'000 | J53: =IF(J$9=MAX($J$9:$S$9),-SUM(J51:J52),0) -> 0 | K53: =IF(K$9=MAX($J$9:$S$9),-SUM(K51:K52),0) -> 0 | L53: -6000 | M53: 0 | N53: 0 | O53: 0 | P53: 0 | Q53: 0 | R53: 0 | S53: 0 | T53: =Cash_Flow_Statement -> CFS | U53: =IF(J$9=MAX($J$9:$S$9),-SUM(J51:J52),0)
E54: Closing balance | G54: =Currency -> US$'000 | I54: ='Opening Balance Sheet'!$I$56 -> 0 | J54: =SUM(J51:J53) -> 4600 | K54: 6000 | L54: 0 | M54: 0 | N54: 0 | O54: 0 | P54: 0 | Q54: 0 | R54: 0 | S54: =SUM(S51:S53) -> 0 | T54: =Balance_Sheet -> BS | U54: =SUM(J51:J53)
E56: Initial equity | G56: =Currency -> US$'000 | I56: =Assumptions!$I$45 -> 6000
E58: Limit remaining (before drawdown) | G58: =Currency -> US$'000 | J58: =IF(J$9=0,0,MAX($I56-J51,0)) -> 6000 | K58: =IF(K$9=0,0,MAX($I56-K51,0)) -> 1400 | L58: 0 | M58: 0 | N58: 0 | O58: 0 | P58: 0 | Q58: 0 | R58: 0 | S58: 0 | U58: =IF(J$9=0,0,MAX($I56-J51,0))
C61: Debt
D63: Control account
E65: Opening balance | G65: =Currency -> US$'000 | J65: =I68 -> 0 | K65: =J68 -> 0 | L65: 6880 | M65: 0 | N65: 0 | O65: 0 | P65: 0 | Q65: 0 | R65: 0 | S65: 0 | T65: =Balance_Sheet -> BS | U65: =I68
E66: Debt drawdowns | G66: =Currency -> US$'000 | J66: =-J43 -> 0 | K66: =-K43 -> 6880 | L66: 9120 | M66: 0 | N66: 0 | O66: 0 | P66: 0 | Q66: 0 | R66: 0 | S66: 0 | T66: =Cash_Flow_Statement -> CFS | U66: =-J43
E67: Refinancing at completion | G67: =Currency -> US$'000 | J67: =IF(J$9=MAX($J$9:$S$9),-SUM(J65:J66),0) -> 0 | K67: =IF(K$9=MAX($J$9:$S$9),-SUM(K65:K66),0) -> 0 | L67: -16000 | M67: 0 | N67: 0 | O67: 0 | P67: 0 | Q67: 0 | R67: 0 | S67: 0 | T67: =Cash_Flow_Statement -> CFS | U67: =IF(J$9=MAX($J$9:$S$9),-SUM(J65:J66),0)
E68: Closing balance | G68: =Currency -> US$'000 | I68: ='Opening Balance Sheet'!$I$44 -> 0 | J68: =SUM(J65:J67) -> 0 | K68: =SUM(K65:K67) -> 6880 | L68: =SUM(L65:L67) -> 0 | M68: 0 | N68: 0 | O68: 0 | P68: 0 | Q68: 0 | R68: 0 | S68: 0 | T68: =Balance_Sheet -> BS | U68: =SUM(J65:J67)
E70: Debt limit | G70: =Currency -> US$'000 | I70: =Assumptions!$I$46 -> 16000
E72: Limit remaining (before drawdown) | G72: =Currency -> US$'000 | J72: =IF(J$9=0,0,MAX($I70-J65,0)) -> 16000 | K72: =IF(K$9=0,0,MAX($I70-K65,0)) -> 16000 | L72: 9120 | M72: 0 | N72: 0 | O72: 0 | P72: 0 | Q72: 0 | R72: 0 | S72: 0 | U72: =IF(J$9=0,0,MAX($I70-J65,0))
D74: Interest
E76: BBSW | G76: =Percentage&" p.a." -> % p.a. | J76: =Assumptions!J128 -> 0.002 | K76: =Assumptions!K128 -> 0.0015 | L76: =Assumptions!L128 -> 0.003 | M76: =Assumptions!M128 -> 0.005 | N76: =Assumptions!N128 -> 0.0075 | O76: =Assumptions!O128 -> 0.011 | P76: =Assumptions!P128 -> 0.014 | Q76: =Assumptions!Q128 -> 0.015 | R76: =Assumptions!R128 -> 0.015 | S76: =Assumptions!S128 -> 0.015 | U76: =Assumptions!J128
E77: Margin | G77: =Percentage&" p.a." -> % p.a. | I77: =Assumptions!$I$50 -> 0.035
E78: All-in rate | G78: =Percentage&" p.a." -> % p.a. | J78: =($I77+J76)*MIN(J$8,Days_in_Year)/Days_in_Year -> 0.037 | K78: 0.0365 | L78: 0.038 | M78: 0.04 | N78: 0.0425 | O78: 0.046 | P78: 0.049 | Q78: 0.05 | R78: 0.05 | S78: 0.05 | U78: =($I77+J76)*MIN(J$8,Days_in_Year)/Days_in_Year
E80: Interest | G80: =Currency -> US$'000 | J80: =J65*J78 -> 0 | K80: =K65*K78 -> 0 | L80: 261.44 | M80: 0 | N80: 0 | O80: 0 | P80: 0 | Q80: 0 | R80: 0 | S80: 0 | U80: =J65*J78
D82: Establishment fee
U83: =IFERROR(_xlfn.FORMULATEXT(J83),"") -> 
E84: Establishment fee | G84: =Percentage -> % | I84: =Assumptions!$I$51 -> 0.02
E86: Establishment fee | G86: =Currency -> US$'000 | J86: =IF(J$9=1,$I70*$I84,0) -> 320 | K86: =IF(K$9=1,$I70*$I84,0) -> 0 | L86: 0 | M86: 0 | N86: 0 | O86: 0 | P86: 0 | Q86: 0 | R86: 0 | S86: 0 | U86: =IF(J$9=1,$I70*$I84,0)
D88: Commitment fee
E90: Commitment fee | G90: =Percentage&" of margin" -> % of margin | I90: =Assumptions!$I$52 -> 0.5
E92: Commitment fee | G92: =Currency -> US$'000 | J92: =$I90*$I77*J72 -> 280 | K92: =$I90*$I77*K72 -> 280 | L92: 159.6 | M92: 0 | N92: 0 | O92: 0 | P92: 0 | Q92: 0 | R92: 0 | S92: 0 | U92: =$I90*$I77*J72
C95: Convertible debt
D97: Control account
E99: Opening balance | G99: =Currency -> US$'000 | J99: =I102 -> 0 | K99: =J102 -> 0 | L99: 0 | M99: 0 | N99: 0 | O99: 0 | P99: 0 | Q99: 0 | R99: 0 | S99: 0 | T99: =Balance_Sheet -> BS | U99: =I102
E100: Debt drawdowns | G100: =Currency -> US$'000 | J100: =J44 -> 0 | K100: =K44 -> 0 | L100: 8801.04 | M100: 0 | N100: 0 | O100: 0 | P100: 0 | Q100: 0 | R100: 0 | S100: 0 | T100: =Cash_Flow_Statement -> CFS | U100: =J44
E101: Transfer to operations | G101: =Currency -> US$'000 | J101: =IF(J$9=MAX($J$9:$S$9),-SUM(J99:J100),0) -> 0 | K101: =IF(K$9=MAX($J$9:$S$9),-SUM(K99:K100),0) -> 0 | L101: -8801.04 | M101: 0 | N101: 0 | O101: 0 | P101: 0 | Q101: 0 | R101: 0 | S101: 0 | T101: =Cash_Flow_Statement -> CFS | U101: =IF(J$9=MAX($J$9:$S$9),-SUM(J99:J100),0)
E102: Closing balance | G102: =Currency -> US$'000 | I102: ='Opening Balance Sheet'!$I$45 -> 0 | J102: =SUM(J99:J101) -> 0 | K102: 0 | L102: 0 | M102: 0 | N102: 0 | O102: 0 | P102: 0 | Q102: 0 | R102: =SUM(R99:R101) -> 0 | S102: =SUM(S99:S101) -> 0 | T102: =Balance_Sheet -> BS | U102: =SUM(J99:J101)
D104: Interest
E106: BBSW | G106: =Percentage&" p.a." -> % p.a. | J106: =Assumptions!J128 -> 0.002 | K106: =Assumptions!K128 -> 0.0015 | L106: =Assumptions!L128 -> 0.003 | M106: =Assumptions!M128 -> 0.005 | N106: =Assumptions!N128 -> 0.0075 | O106: =Assumptions!O128 -> 0.011 | P106: =Assumptions!P128 -> 0.014 | Q106: =Assumptions!Q128 -> 0.015 | R106: =Assumptions!R128 -> 0.015 | S106: =Assumptions!S128 -> 0.015 | U106: =Assumptions!J128
E107: Margin | G107: =Percentage&" p.a." -> % p.a. | I107: =Assumptions!$I$173 -> 0.02
E108: All-in rate | G108: =Percentage&" p.a." -> % p.a. | J108: =($I107+J106)*MIN(J$8,Days_in_Year)/Days_in_Year -> 0.022 | K108: 0.0215 | L108: 0.023 | M108: 0.025 | N108: 0.0275 | O108: 0.031 | P108: 0.034 | Q108: 0.035 | R108: 0.035 | S108: 0.035 | U108: =($I107+J106)*MIN(J$8,Days_in_Year)/Days_in_Year
E110: Interest | G110: =Currency -> US$'000 | J110: =J99*J108 -> 0 | K110: =K99*K108 -> 0 | L110: 0 | M110: 0 | N110: 0 | O110: 0 | P110: 0 | Q110: 0 | R110: 0 | S110: 0 | U110: =J99*J108

Sheet Operations
A1: =IF(ISERROR(RIGHT(CELL("filename",A1),LEN(CELL("filename",A1))-FIND("]",CELL("filename",A1)))), "", RIGHT(CELL("filename",A1),LEN(CELL("filename",A1))-FIND("]",CELL("filename",A1)))) -> Operations
A2: =Model_Name -> Model 08 - Opex Completed.xlsm
A3: Navigator
B4: Error Checks: | F4: =Overall_Error_Check -> 0
J5: =Timing!J5 -> 2024-06-30 | K5: =Timing!K5 -> 2025-06-30 | L5: =Timing!L5 -> 2026-06-30 | M5: =Timing!M5 -> 2027-06-30 | N5: =Timing!N5 -> 2028-06-30 | O5: =Timing!O5 -> 2029-06-30 | P5: =Timing!P5 -> 2030-06-30 | Q5: =Timing!Q5 -> 2031-06-30 | R5: =Timing!R5 -> 2032-06-30 | S5: =Timing!S5 -> 2033-06-30
C6: =Timing!C6 -> Start Date | J6: =Timing!J6 -> 2023-07-01 | K6: =Timing!K6 -> 2024-07-01 | L6: =Timing!L6 -> 2025-07-01 | M6: =Timing!M6 -> 2026-07-01 | N6: =Timing!N6 -> 2027-07-01 | O6: =Timing!O6 -> 2028-07-01 | P6: =Timing!P6 -> 2029-07-01 | Q6: =Timing!Q6 -> 2030-07-01 | R6: =Timing!R6 -> 2031-07-01 | S6: =Timing!S6 -> 2032-07-01
C7: =Timing!C7 -> End Date | J7: =Timing!J7 -> 2024-06-30 | K7: =Timing!K7 -> 2025-06-30 | L7: =Timing!L7 -> 2026-06-30 | M7: =Timing!M7 -> 2027-06-30 | N7: =Timing!N7 -> 2028-06-30 | O7: =Timing!O7 -> 2029-06-30 | P7: =Timing!P7 -> 2030-06-30 | Q7: =Timing!Q7 -> 2031-06-30 | R7: =Timing!R7 -> 2032-06-30 | S7: =Timing!S7 -> 2033-06-30
C8: =Timing!C8 -> Number of Days | J8: =Timing!J8 -> 366 | K8: =Timing!K8 -> 365 | L8: =Timing!L8 -> 365 | M8: =Timing!M8 -> 365 | N8: =Timing!N8 -> 366 | O8: =Timing!O8 -> 365 | P8: =Timing!P8 -> 365 | Q8: =Timing!Q8 -> 365 | R8: =Timing!R8 -> 366 | S8: =Timing!S8 -> 365
C9: =Timing!C9 -> Construction period | J9: =Timing!J9 -> 1 | K9: =Timing!K9 -> 2 | L9: =Timing!L9 -> 3 | M9: =Timing!M9 -> 0 | N9: =Timing!N9 -> 0 | O9: =Timing!O9 -> 0 | P9: =Timing!P9 -> 0 | Q9: =Timing!Q9 -> 0 | R9: =Timing!R9 -> 0 | S9: =Timing!S9 -> 0
C10: =Timing!C10 -> Operations period | J10: =Timing!J10 -> 0 | K10: =Timing!K10 -> 0 | L10: =Timing!L10 -> 0 | M10: =Timing!M10 -> 1 | N10: =Timing!N10 -> 2 | O10: =Timing!O10 -> 3 | P10: =Timing!P10 -> 4 | Q10: =Timing!Q10 -> 5 | R10: =Timing!R10 -> 6 | S10: =Timing!S10 -> 7
C11: =Timing!C11 -> Counter | J11: =Timing!J11 -> 1 | K11: =Timing!K11 -> 2 | L11: =Timing!L11 -> 3 | M11: =Timing!M11 -> 4 | N11: =Timing!N11 -> 5 | O11: =Timing!O11 -> 6 | P11: =Timing!P11 -> 7 | Q11: =Timing!Q11 -> 8 | R11: =Timing!R11 -> 9 | S11: =Timing!S11 -> 10
B13: =MAX($B$12:$B12)+1 -> 1 | C13: =A1 -> Operations
C15: =Assumptions!C57 -> Generation
D17: =Assumptions!D59 -> Expected generation
E19: =Assumptions!E65 -> Annual generation in use | G19: =Megawatt_Hours -> MWh | J19: =Assumptions!J65 -> 0 | K19: =Assumptions!K65 -> 0 | L19: =Assumptions!L65 -> 0 | M19: =Assumptions!M65 -> 55000 | N19: =Assumptions!N65 -> 55000 | O19: =Assumptions!O65 -> 55000 | P19: =Assumptions!P65 -> 55000 | Q19: =Assumptions!Q65 -> 55000 | R19: =Assumptions!R65 -> 55000 | S19: =Assumptions!S65 -> 55000 | U19: =IFERROR(_xlfn.FORMULATEXT(J19),"") -> =Assumptions!J65
E21: =Assumptions!E67 -> Annual degradation | G21: =Percentage -> % | I21: =Assumptions!$I$67 -> 0.02 | U21: =IFERROR(_xlfn.FORMULATEXT(I21),"") -> =Assumptions!$I$67
E23: Adjusted generation | G23: =Megawatt_Hours -> MWh | J23: =IF(J$10=0,,J19*((1-$I21)^(J$10-1))) -> 0 | K23: =IF(K$10=0,,K19*((1-$I21)^(K$10-1))) -> 0 | L23: 0 | M23: 55000 | N23: 53900 | O23: 52822 | P23: 51765.56 | Q23: 50730.2488 | R23: 49715.64382 | S23: 48721.33095 | U23: =IF(J$10=0,,J19*((1-$I21)^(J$10-1)))
C26: =Assumptions!C69 -> Revenue and related
D28: =Assumptions!D71 -> Sales
E30: =Assumptions!E77 -> Electricity sales price in use | G30: =Dollars_per_Megawatt_Hour -> $/MWh | J30: =Assumptions!J77 -> 0 | K30: =Assumptions!K77 -> 0 | L30: =Assumptions!L77 -> 0 | M30: =Assumptions!M77 -> 100 | N30: =Assumptions!N77 -> 103 | O30: =Assumptions!O77 -> 106 | P30: =Assumptions!P77 -> 109 | Q30: =Assumptions!Q77 -> 112 | R30: =Assumptions!R77 -> 115 | S30: =Assumptions!S77 -> 118 | U30: =Assumptions!J77
E31: =E23 -> Adjusted generation | G31: =Megawatt_Hours -> MWh | H31: ="Row "&ROW(J23) -> Row 23 | J31: =J23 -> 0 | K31: =K23 -> 0 | L31: 0 | M31: 55000 | N31: 53900 | O31: 52822 | P31: 51765.56 | Q31: 50730.2488 | R31: 49715.64382 | S31: 48721.33095 | U31: =J23
E32: Revenue | G32: =Currency -> US$'000 | J32: =J30*J31/Thousand -> 0 | K32: 0 | L32: 0 | M32: 5500 | N32: 5551.7 | O32: 5599.132 | P32: 5642.44604 | Q32: 5681.787866 | R32: 5717.29904 | S32: 5749.117052 | U32: =J30*J31/Thousand
D34: Working capital
E36: Days receivable | G36: =No_of_Days -> # Days | J36: =Assumptions!J81 -> 60 | K36: =Assumptions!K81 -> 60 | L36: =Assumptions!L81 -> 60 | M36: =Assumptions!M81 -> 60 | N36: =Assumptions!N81 -> 60 | O36: =Assumptions!O81 -> 60 | P36: =Assumptions!P81 -> 60 | Q36: =Assumptions!Q81 -> 60 | R36: =Assumptions!R81 -> 60 | S36: =Assumptions!S81 -> 60 | U36: =Assumptions!J81
E38: Days in period | G38: =No_of_Days -> # Days | J38: =J$8 -> 366 | K38: =K$8 -> 365 | L38: 365 | M38: 365 | N38: 366 | O38: 365 | P38: 365 | Q38: 365 | R38: 366 | S38: 365 | U38: =J$8
E40: Closing receivables | G40: =Currency -> US$'000 | J40: =J32*J36/J38 -> 0 | K40: =K32*K36/K38 -> 0 | L40: 0 | M40: 904.109589 | N40: 910.1147541 | O40: 920.4052603 | P40: 927.5253764 | Q40: 933.9925259 | R40: 937.2621377 | S40: 945.0603373 | U40: =J32*J36/J38
D42: Control account
E44: Opening receivables | G44: =Currency -> US$'000 | J44: =I47 -> 0 | K44: =J47 -> 0 | L44: 0 | M44: 0 | N44: 904.109589 | O44: 910.1147541 | P44: 920.4052603 | Q44: 927.5253764 | R44: 933.9925259 | S44: 937.2621377 | T44: =Balance_Sheet -> BS | U44: =I47
E45: Revenue | G45: =Currency -> US$'000 | J45: =J32 -> 0 | K45: =K32 -> 0 | L45: 0 | M45: 5500 | N45: 5551.7 | O45: 5599.132 | P45: 5642.44604 | Q45: 5681.787866 | R45: 5717.29904 | S45: 5749.117052 | T45: =Income_Statement -> IS | U45: =J32
E46: Cash receipts | G46: =Currency -> US$'000 | J46: =J47-SUM(J44:J45) -> 0 | K46: =K47-SUM(K44:K45) -> 0 | L46: 0 | M46: -4595.890411 | N46: -5545.694835 | O46: -5588.841494 | P46: -5635.325924 | Q46: -5675.320716 | R46: -5714.029428 | S46: -5741.318852 | T46: =Cash_Flow_Statement -> CFS | U46: =J47-SUM(J44:J45)
E47: Closing receivables | G47: =Currency -> US$'000 | I47: ='Opening Balance Sheet'!$I$19 -> 0 | J47: =J40 -> 0 | K47: =K40 -> 0 | L47: 0 | M47: 904.109589 | N47: 910.1147541 | O47: 920.4052603 | P47: 927.5253764 | Q47: 933.9925259 | R47: 937.2621377 | S47: 945.0603373 | T47: =Balance_Sheet -> BS | U47: =J40
C50: COGS and related | U50: =IFERROR(_xlfn.FORMULATEXT(J50),"") -> 
D52: COGS
E54: =E23 -> Adjusted generation | G54: =Megawatt_Hours -> MWh | H54: ="Row "&ROW(J23) -> Row 23 | J54: =J23 -> 0 | K54: =K23 -> 0 | L54: 0 | M54: 55000 | N54: 53900 | O54: 52822 | P54: 51765.56 | Q54: 50730.2488 | R54: 49715.64382 | S54: 48721.33095 | U54: =J23
E55: =Assumptions!E92 -> Cost per MWh in use | G55: =Dollars_per_Megawatt_Hour -> $/MWh | J55: =Assumptions!J92 -> 0 | K55: =Assumptions!K92 -> 0 | L55: =Assumptions!L92 -> 0 | M55: =Assumptions!M92 -> 20 | N55: =Assumptions!N92 -> 20 | O55: =Assumptions!O92 -> 20 | P55: =Assumptions!P92 -> 20 | Q55: =Assumptions!Q92 -> 20 | R55: =Assumptions!R92 -> 20 | S55: =Assumptions!S92 -> 20 | U55: =Assumptions!J92
E56: COGS | G56: =Currency -> US$'000 | J56: =J54*J55/Thousand -> 0 | K56: 0 | L56: 0 | M56: 1100 | N56: 1078 | O56: 1056.44 | P56: 1035.3112 | Q56: 1014.604976 | R56: 994.3128765 | S56: 974.426619 | U56: =J54*J55/Thousand
D58: Working capital
E60: =Assumptions!E96 -> Days payable | G60: =No_of_Days -> # Days | J60: =Assumptions!J96 -> 90 | K60: =Assumptions!K96 -> 90 | L60: =Assumptions!L96 -> 90 | M60: =Assumptions!M96 -> 90 | N60: =Assumptions!N96 -> 90 | O60: =Assumptions!O96 -> 90 | P60: =Assumptions!P96 -> 90 | Q60: =Assumptions!Q96 -> 90 | R60: =Assumptions!R96 -> 90 | S60: =Assumptions!S96 -> 90 | U60: =Assumptions!J96
E62: Days in period | G62: =No_of_Days -> # Days | J62: =J$8 -> 366 | K62: =K$8 -> 365 | L62: 365 | M62: 365 | N62: 366 | O62: 365 | P62: 365 | Q62: 365 | R62: 366 | S62: 365 | U62: =J$8
E64: Closing payables | G64: =Currency -> US$'000 | J64: =J56*J60/J62 -> 0 | K64: =K56*K60/K62 -> 0 | L64: 0 | M64: 271.2328767 | N64: 265.0819672 | O64: 260.4920548 | P64: 255.2822137 | Q64: 250.1765694 | R64: 244.5031663 | S64: 240.2695773 | U64: =J56*J60/J62
D66: Control account
E68: Opening payables | G68: =Currency -> US$'000 | J68: =I71 -> 0 | K68: =J71 -> 0 | L68: 0 | M68: 0 | N68: 271.2328767 | O68: 265.0819672 | P68: 260.4920548 | Q68: 255.2822137 | R68: 250.1765694 | S68: 244.5031663 | T68: =Balance_Sheet -> BS | U68: =I71
E69: COGS | G69: =Currency -> US$'000 | J69: =J56 -> 0 | K69: =K56 -> 0 | L69: 0 | M69: 1100 | N69: 1078 | O69: 1056.44 | P69: 1035.3112 | Q69: 1014.604976 | R69: 994.3128765 | S69: 974.426619 | T69: =Income_Statement -> IS | U69: =J56
E70: Cash payments | G70: =Currency -> US$'000 | J70: =J71-SUM(J68:J69) -> 0 | K70: =K71-SUM(K68:K69) -> 0 | L70: 0 | M70: -828.7671233 | N70: -1084.150909 | O70: -1061.029912 | P70: -1040.521041 | Q70: -1019.71062 | R70: -999.9862796 | S70: -978.660208 | T70: =Cash_Flow_Statement -> CFS | U70: =J71-SUM(J68:J69)
E71: Closing payables | G71: =Currency -> US$'000 | I71: ='Opening Balance Sheet'!$I$36 -> 0 | J71: =J64 -> 0 | K71: =K64 -> 0 | L71: 0 | M71: 271.2328767 | N71: 265.0819672 | O71: 260.4920548 | P71: 255.2822137 | Q71: 250.1765694 | R71: 244.5031663 | S71: 240.2695773 | T71: =Balance_Sheet -> BS | U71: =J64
C74: Opex and cash payments | U74: =IFERROR(_xlfn.FORMULATEXT(J74),"") -> 
C75: =Assumptions!C100 -> All expenses are assumed to be paid as they are incurred
D77: =Assumptions!D102 -> Opex
E79: =Assumptions!E104 -> Projected costs | G79: =Currency -> US$'000 | J79: =Assumptions!J104 -> 0 | K79: =Assumptions!K104 -> 0 | L79: =Assumptions!L104 -> 0 | M79: =Assumptions!M104 -> 200 | N79: =Assumptions!N104 -> 225 | O79: =Assumptions!O104 -> 250 | P79: =Assumptions!P104 -> 275 | Q79: =Assumptions!Q104 -> 300 | R79: =Assumptions!R104 -> 325 | S79: =Assumptions!S104 -> 350 | U79: =Assumptions!J104
E81: =D77 -> Opex | G81: =Currency -> US$'000 | J81: =IF(J$10=0,,J79) -> 0 | K81: =IF(K$10=0,,K79) -> 0 | L81: 0 | M81: 200 | N81: 225 | O81: 250 | P81: 275 | Q81: 300 | R81: 325 | S81: 350 | U81: =IF(J$10=0,,J79)
D83: Working capital
E85: =E60 -> Days payable | G85: =No_of_Days -> # Days
E87: Days in period | G87: =No_of_Days -> # Days | J87: =J$8 -> 366 | K87: =K$8 -> 365 | L87: 365 | M87: 365 | N87: 366 | O87: 365 | P87: 365 | Q87: 365 | R87: 366 | S87: 365 | U87: =J$8
E89: Closing payables | G89: =Currency -> US$'000 | J89: =J81*J85/J87 -> 0 | K89: =K81*K85/K87 -> 0 | L89: 0 | M89: 0 | N89: 0 | O89: 0 | P89: 0 | Q89: 0 | R89: 0 | S89: 0 | U89: =J81*J85/J87
D91: Control account
E93: Opening payables | G93: =Currency -> US$'000 | J93: =I96 -> 0 | K93: =J96 -> 0 | L93: 0 | M93: 0 | N93: 0 | O93: 0 | P93: 0 | Q93: 0 | R93: 0 | S93: 0 | T93: =Balance_Sheet -> BS | U93: =I96
E94: =D77 -> Opex | G94: =Currency -> US$'000 | J94: =J81 -> 0 | K94: =K81 -> 0 | L94: 0 | M94: 200 | N94: 225 | O94: 250 | P94: 275 | Q94: 300 | R94: 325 | S94: 350 | T94: =Income_Statement -> IS | U94: =J81
E95: Cash payments | G95: =Currency -> US$'000 | J95: =J96-SUM(J93:J94) -> 0 | K95: =K96-SUM(K93:K94) -> 0 | L95: 0 | M95: -200 | N95: -225 | O95: -250 | P95: -275 | Q95: -300 | R95: -325 | S95: -350 | T95: =Cash_Flow_Statement -> CFS | U95: =J96-SUM(J93:J94)
E96: Closing payables | G96: =Currency -> US$'000 | J96: =J89 -> 0 | K96: =K89 -> 0 | L96: 0 | M96: 0 | N96: 0 | O96: 0 | P96: 0 | Q96: 0 | R96: 0 | S96: 0 | T96: =Balance_Sheet -> BS | U96: =J89

Sheet Income Statement
A1: =IF(ISERROR(RIGHT(CELL("filename",A1),LEN(CELL("filename",A1))-FIND("]",CELL("filename",A1)))), "", RIGHT(CELL("filename",A1),LEN(CELL("filename",A1))-FIND("]",CELL("filename",A1)))) -> Income Statement
A2: =Model_Name -> Model 08 - Opex Completed.xlsm
A3: Navigator
B4: Error Checks: | F4: =Overall_Error_Check -> 0
J5: =Timing!J5 -> 2024-06-30 | K5: =Timing!K5 -> 2025-06-30 | L5: =Timing!L5 -> 2026-06-30 | M5: =Timing!M5 -> 2027-06-30 | N5: =Timing!N5 -> 2028-06-30 | O5: =Timing!O5 -> 2029-06-30 | P5: =Timing!P5 -> 2030-06-30 | Q5: =Timing!Q5 -> 2031-06-30 | R5: =Timing!R5 -> 2032-06-30 | S5: =Timing!S5 -> 2033-06-30
C6: =Timing!C6 -> Start Date | J6: =Timing!J6 -> 2023-07-01 | K6: =Timing!K6 -> 2024-07-01 | L6: =Timing!L6 -> 2025-07-01 | M6: =Timing!M6 -> 2026-07-01 | N6: =Timing!N6 -> 2027-07-01 | O6: =Timing!O6 -> 2028-07-01 | P6: =Timing!P6 -> 2029-07-01 | Q6: =Timing!Q6 -> 2030-07-01 | R6: =Timing!R6 -> 2031-07-01 | S6: =Timing!S6 -> 2032-07-01
C7: =Timing!C7 -> End Date | J7: =Timing!J7 -> 2024-06-30 | K7: =Timing!K7 -> 2025-06-30 | L7: =Timing!L7 -> 2026-06-30 | M7: =Timing!M7 -> 2027-06-30 | N7: =Timing!N7 -> 2028-06-30 | O7: =Timing!O7 -> 2029-06-30 | P7: =Timing!P7 -> 2030-06-30 | Q7: =Timing!Q7 -> 2031-06-30 | R7: =Timing!R7 -> 2032-06-30 | S7: =Timing!S7 -> 2033-06-30
C8: =Timing!C8 -> Number of Days | J8: =Timing!J8 -> 366 | K8: =Timing!K8 -> 365 | L8: =Timing!L8 -> 365 | M8: =Timing!M8 -> 365 | N8: =Timing!N8 -> 366 | O8: =Timing!O8 -> 365 | P8: =Timing!P8 -> 365 | Q8: =Timing!Q8 -> 365 | R8: =Timing!R8 -> 366 | S8: =Timing!S8 -> 365
C9: =Timing!C9 -> Construction period | J9: =Timing!J9 -> 1 | K9: =Timing!K9 -> 2 | L9: =Timing!L9 -> 3 | M9: =Timing!M9 -> 0 | N9: =Timing!N9 -> 0 | O9: =Timing!O9 -> 0 | P9: =Timing!P9 -> 0 | Q9: =Timing!Q9 -> 0 | R9: =Timing!R9 -> 0 | S9: =Timing!S9 -> 0
C10: =Timing!C10 -> Operations period | J10: =Timing!J10 -> 0 | K10: =Timing!K10 -> 0 | L10: =Timing!L10 -> 0 | M10: =Timing!M10 -> 1 | N10: =Timing!N10 -> 2 | O10: =Timing!O10 -> 3 | P10: =Timing!P10 -> 4 | Q10: =Timing!Q10 -> 5 | R10: =Timing!R10 -> 6 | S10: =Timing!S10 -> 7
C11: =Timing!C11 -> Counter | J11: =Timing!J11 -> 1 | K11: =Timing!K11 -> 2 | L11: =Timing!L11 -> 3 | M11: =Timing!M11 -> 4 | N11: =Timing!N11 -> 5 | O11: =Timing!O11 -> 6 | P11: =Timing!P11 -> 7 | Q11: =Timing!Q11 -> 8 | R11: =Timing!R11 -> 9 | S11: =Timing!S11 -> 10
B13: =MAX($B$12:$B12)+1 -> 1 | C13: =A1 -> Income Statement | U13: =IFERROR(_xlfn.FORMULATEXT(C13),"") -> =A1
U14: =IFERROR(_xlfn.FORMULATEXT(J14),"") -> 
D15: Revenue | G15: =Currency -> US$'000 | J15: =Operations!J45 -> 0 | K15: =Operations!K45 -> 0 | L15: =Operations!L45 -> 0 | M15: =Operations!M45 -> 5500 | N15: =Operations!N45 -> 5551.7 | O15: =Operations!O45 -> 5599.132 | P15: =Operations!P45 -> 5642.44604 | Q15: =Operations!Q45 -> 5681.787866 | R15: =Operations!R45 -> 5717.29904 | S15: =Operations!S45 -> 5749.117052 | U15: =Operations!J45
D16: COGS | G16: =Currency -> US$'000 | J16: =-Operations!J69 -> 0 | K16: =-Operations!K69 -> 0 | L16: =-Operations!L69 -> 0 | M16: =-Operations!M69 -> -1100 | N16: =-Operations!N69 -> -1078 | O16: =-Operations!O69 -> -1056.44 | P16: =-Operations!P69 -> -1035.3112 | Q16: =-Operations!Q69 -> -1014.604976 | R16: =-Operations!R69 -> -994.3128765 | S16: =-Operations!S69 -> -974.426619 | U16: =-Operations!J69
D17: Gross Profit | G17: =Currency -> US$'000 | J17: =SUM(J15:J16) -> 0 | K17: =SUM(K15:K16) -> 0 | L17: 0 | M17: 4400 | N17: 4473.7 | O17: 4542.692 | P17: 4607.13484 | Q17: 4667.18289 | R17: 4722.986163 | S17: 4774.690433 | U17: =IFERROR(_xlfn.FORMULATEXT(J17),"") -> =SUM(J15:J16)
U18: =IFERROR(_xlfn.FORMULATEXT(J18),"") -> 
D19: Operating expenditure | G19: =Currency -> US$'000 | J19: =-Operations!J94 -> 0 | K19: =-Operations!K94 -> 0 | L19: =-Operations!L94 -> 0 | M19: =-Operations!M94 -> -200 | N19: =-Operations!N94 -> -225 | O19: =-Operations!O94 -> -250 | P19: =-Operations!P94 -> -275 | Q19: =-Operations!Q94 -> -300 | R19: =-Operations!R94 -> -325 | S19: =-Operations!S94 -> -350 | U19: =-Operations!J94
D20: EBITDA | G20: =Currency -> US$'000 | J20: =J17+J19 -> 0 | K20: =K17+K19 -> 0 | L20: 0 | M20: 4200 | N20: 4248.7 | O20: 4292.692 | P20: 4332.13484 | Q20: 4367.18289 | R20: 4397.986163 | S20: 4424.690433 | U20: =J17+J19
D22: Depreciation | G22: =Currency -> US$'000
D23: EBIT | G23: =Currency -> US$'000 | J23: =J20+J22 -> 0 | K23: =K20+K22 -> 0 | L23: 0 | M23: 4200 | N23: 4248.7 | O23: 4292.692 | P23: 4332.13484 | Q23: 4367.18289 | R23: 4397.986163 | S23: 4424.690433 | U23: =J20+J22
D25: Interest Expense | G25: =Currency -> US$'000
D26: NPBT | G26: =Currency -> US$'000 | J26: =J23+J25 -> 0 | K26: =K23+K25 -> 0 | L26: 0 | M26: 4200 | N26: 4248.7 | O26: 4292.692 | P26: 4332.13484 | Q26: 4367.18289 | R26: 4397.986163 | S26: 4424.690433 | U26: =J23+J25
D28: Tax Expense | G28: =Currency -> US$'000
D29: NPAT | G29: =Currency -> US$'000 | J29: =J26+J28 -> 0 | K29: =K26+K28 -> 0 | L29: 0 | M29: 4200 | N29: 4248.7 | O29: 4292.692 | P29: 4332.13484 | Q29: 4367.18289 | R29: 4397.986163 | S29: 4424.690433 | U29: =J26+J28

Sheet Opening Balance Sheet
A1: =IF(ISERROR(RIGHT(CELL("filename",A1),LEN(CELL("filename",A1))-FIND("]",CELL("filename",A1)))), "", RIGHT(CELL("filename",A1),LEN(CELL("filename",A1))-FIND("]",CELL("filename",A1)))) -> Opening Balance Sheet
A2: =Model_Name -> Model 08 - Opex Completed.xlsm
A3: Navigator
B4: Error Checks: | F4: =Overall_Error_Check -> 0
I5: =Model_Start_Date-1 -> 2023-06-30
C6: =Timing!C6 -> Start Date
C7: =Timing!C7 -> End Date
C8: =Timing!C8 -> Number of Days
C9: =Timing!C9 -> Construction period
C10: =Timing!C10 -> Operations period
C11: =Timing!C11 -> Counter
B13: =MAX($B$12:$B12)+1 -> 1 | C13: =A1 -> Opening Balance Sheet | K13: =IFERROR(_xlfn.FORMULATEXT(C13),"") -> =A1
C15: ='Balance Sheet'!C15 -> Current assets
E16: ='Balance Sheet'!E16 -> Opening cash | G16: =Currency -> US$'000 | K16: =IFERROR(_xlfn.FORMULATEXT(I16),"") -> 
E17: ='Balance Sheet'!E17 -> Net cash flow | G17: US$'000
D18: ='Balance Sheet'!D18 -> Cash | G18: US$'000 | I18: 0
D19: ='Balance Sheet'!D19 -> Accounts receivable | G19: US$'000 | I19: 0
D20: ='Balance Sheet'!D20 -> Other current assets | G20: US$'000 | I20: 0
D21: ='Balance Sheet'!D21 -> Total current assets | G21: US$'000 | I21: =SUM(I16:I20) -> 0 | K21: =SUM(I16:I20)
C23: ='Balance Sheet'!C23 -> Non-current assets
D24: ='Balance Sheet'!D24 -> PP&E | G24: =Currency -> US$'000 | I24: 0
D25: ='Balance Sheet'!D25 -> Deferred tax assets | G25: =Currency -> US$'000 | I25: 0
D26: ='Balance Sheet'!D26 -> Total non-current assets | G26: =Currency -> US$'000 | I26: =SUM(I24:I25) -> 0 | K26: =SUM(I24:I25)
C28: ='Balance Sheet'!C28 -> Reserve accounts
D29: ='Balance Sheet'!D29 -> DSRA | G29: =Currency -> US$'000 | I29: 0
D30: ='Balance Sheet'!D30 -> MRA | G30: =Currency -> US$'000 | I30: 0
D31: ='Balance Sheet'!D31 -> Total reserve accounts | G31: =Currency -> US$'000 | I31: =SUM(I29:I30) -> 0 | K31: =SUM(I29:I30)
C33: ='Balance Sheet'!C33 -> Total assets | G33: =Currency -> US$'000 | I33: =I21+I26+I31 -> 0 | K33: =I21+I26+I31
C35: ='Balance Sheet'!C35 -> Current liabilities
D36: ='Balance Sheet'!D36 -> Accounts payable | G36: =Currency -> US$'000 | I36: 0
D37: ='Balance Sheet'!D37 -> Dividends payable | G37: US$'000 | I37: 0
D38: ='Balance Sheet'!D38 -> Interest payable | G38: US$'000 | I38: 0
D39: ='Balance Sheet'!D39 -> Tax payable | G39: US$'000 | I39: 0
D40: ='Balance Sheet'!D40 -> Other current liabilities | G40: US$'000 | I40: 0
D41: ='Balance Sheet'!D41 -> Total current liabilities | G41: US$'000 | I41: =SUM(I36:I40) -> 0 | K41: =SUM(I36:I40)
C43: ='Balance Sheet'!C43 -> Non-current liabilities
D44: ='Balance Sheet'!D44 -> Debt | G44: =Currency -> US$'000 | I44: 0
D45: ='Balance Sheet'!D45 -> Convertible debt | G45: =Currency -> US$'000 | I45: 0
D46: ='Balance Sheet'!D46 -> Working capital facility | G46: =Currency -> US$'000 | I46: 0
D47: ='Balance Sheet'!D47 -> Deferred tax liabilities | G47: =Currency -> US$'000 | I47: 0
D48: ='Balance Sheet'!D48 -> Total non-current liabilities | G48: =Currency -> US$'000 | I48: =SUM(I44:I47) -> 0 | K48: =SUM(I44:I47)
C50: ='Balance Sheet'!C50 -> Total liabilities | G50: =Currency -> US$'000 | I50: =I41+I48 -> 0 | K50: =I41+I48
C52: ='Balance Sheet'!C52 -> Net assets | G52: =Currency -> US$'000 | I52: =I33-I50 -> 0 | K52: =I33-I50
C55: ='Balance Sheet'!C55 -> Equity
D56: ='Balance Sheet'!D56 -> Ordinary equity | G56: =Currency -> US$'000 | I56: 0
E57: ='Balance Sheet'!E57 -> Opening retained profits | G57: US$'000 | I57: =I52-SUM(I56,I58,I59) -> 0 | K57: =I52-SUM(I56,I58,I59)
E58: ='Balance Sheet'!E58 -> NPAT | G58: US$'000 | I58: 0
E59: ='Balance Sheet'!E59 -> Dividends declared | G59: US$'000 | I59: 0
D60: ='Balance Sheet'!D60 -> Retained profits | G60: US$'000 | I60: =SUM(I57:I59) -> 0 | K60: =SUM(I57:I59)
D61: ='Balance Sheet'!D61 -> Total equity | G61: US$'000 | I61: =I56+I60 -> 0 | K61: =I56+I60
C64: ='Balance Sheet'!C64 -> Checks | K64: =IFERROR(_xlfn.FORMULATEXT(I64),"") -> 
K65: =IFERROR(_xlfn.FORMULATEXT(I65),"") -> 
D66: ='Balance Sheet'!D66 -> PF error check | G66: =Boolean -> [1,0] | I66: =IF(ISERROR(I52-I61),1,0) -> 0 | K66: =IFERROR(_xlfn.FORMULATEXT(I66),"") -> =IF(ISERROR(I52-I61),1,0)
D67: ='Balance Sheet'!D67 -> Balance check | G67: =Boolean -> [1,0] | I67: =IF(I66<>0,,(ROUND(I52-I61,Rounding_Accuracy)<>0)*1) -> 0 | K67: =IFERROR(_xlfn.FORMULATEXT(I67),"") -> =IF(I66<>0,,(ROUND(I52-I61,Rounding_Accuracy)<>0)*1)
D68: ='Balance Sheet'!D68 -> Insolvency check | G68: =Boolean -> [1,0] | I68: =IF(SUM(I66:I67)<>0,,(I52<0)*1) -> 0 | K68: =IFERROR(_xlfn.FORMULATEXT(I68),"") -> =IF(SUM(I66:I67)<>0,,(I52<0)*1)

Sheet Balance Sheet
A1: =IF(ISERROR(RIGHT(CELL("filename",A1),LEN(CELL("filename",A1))-FIND("]",CELL("filename",A1)))), "", RIGHT(CELL("filename",A1),LEN(CELL("filename",A1))-FIND("]",CELL("filename",A1)))) -> Balance Sheet
A2: =Model_Name -> Model 08 - Opex Completed.xlsm
A3: Navigator
B4: Error Checks: | F4: =Overall_Error_Check -> 0
J5: =Timing!J5 -> 2024-06-30 | K5: =Timing!K5 -> 2025-06-30 | L5: =Timing!L5 -> 2026-06-30 | M5: =Timing!M5 -> 2027-06-30 | N5: =Timing!N5 -> 2028-06-30 | O5: =Timing!O5 -> 2029-06-30 | P5: =Timing!P5 -> 2030-06-30 | Q5: =Timing!Q5 -> 2031-06-30 | R5: =Timing!R5 -> 2032-06-30 | S5: =Timing!S5 -> 2033-06-30
C6: =Timing!C6 -> Start Date | J6: =Timing!J6 -> 2023-07-01 | K6: =Timing!K6 -> 2024-07-01 | L6: =Timing!L6 -> 2025-07-01 | M6: =Timing!M6 -> 2026-07-01 | N6: =Timing!N6 -> 2027-07-01 | O6: =Timing!O6 -> 2028-07-01 | P6: =Timing!P6 -> 2029-07-01 | Q6: =Timing!Q6 -> 2030-07-01 | R6: =Timing!R6 -> 2031-07-01 | S6: =Timing!S6 -> 2032-07-01
C7: =Timing!C7 -> End Date | J7: =Timing!J7 -> 2024-06-30 | K7: =Timing!K7 -> 2025-06-30 | L7: =Timing!L7 -> 2026-06-30 | M7: =Timing!M7 -> 2027-06-30 | N7: =Timing!N7 -> 2028-06-30 | O7: =Timing!O7 -> 2029-06-30 | P7: =Timing!P7 -> 2030-06-30 | Q7: =Timing!Q7 -> 2031-06-30 | R7: =Timing!R7 -> 2032-06-30 | S7: =Timing!S7 -> 2033-06-30
C8: =Timing!C8 -> Number of Days | J8: =Timing!J8 -> 366 | K8: =Timing!K8 -> 365 | L8: =Timing!L8 -> 365 | M8: =Timing!M8 -> 365 | N8: =Timing!N8 -> 366 | O8: =Timing!O8 -> 365 | P8: =Timing!P8 -> 365 | Q8: =Timing!Q8 -> 365 | R8: =Timing!R8 -> 366 | S8: =Timing!S8 -> 365
C9: =Timing!C9 -> Construction period | J9: =Timing!J9 -> 1 | K9: =Timing!K9 -> 2 | L9: =Timing!L9 -> 3 | M9: =Timing!M9 -> 0 | N9: =Timing!N9 -> 0 | O9: =Timing!O9 -> 0 | P9: =Timing!P9 -> 0 | Q9: =Timing!Q9 -> 0 | R9: =Timing!R9 -> 0 | S9: =Timing!S9 -> 0
C10: =Timing!C10 -> Operations period | J10: =Timing!J10 -> 0 | K10: =Timing!K10 -> 0 | L10: =Timing!L10 -> 0 | M10: =Timing!M10 -> 1 | N10: =Timing!N10 -> 2 | O10: =Timing!O10 -> 3 | P10: =Timing!P10 -> 4 | Q10: =Timing!Q10 -> 5 | R10: =Timing!R10 -> 6 | S10: =Timing!S10 -> 7
C11: =Timing!C11 -> Counter | J11: =Timing!J11 -> 1 | K11: =Timing!K11 -> 2 | L11: =Timing!L11 -> 3 | M11: =Timing!M11 -> 4 | N11: =Timing!N11 -> 5 | O11: =Timing!O11 -> 6 | P11: =Timing!P11 -> 7 | Q11: =Timing!Q11 -> 8 | R11: =Timing!R11 -> 9 | S11: =Timing!S11 -> 10
B13: =MAX($B$12:$B12)+1 -> 1 | C13: =A1 -> Balance Sheet
C15: Current assets
E16: Opening cash | G16: =Currency -> US$'000 | J16: =IF(J$11=1,'Opening Balance Sheet'!$I$18,I18) -> 0 | K16: =IF(K$11=1,'Opening Balance Sheet'!$I$18,J18) -> 4600 | L16: =IF(L$11=1,'Opening Balance Sheet'!$I$18,K18) -> 12880 | M16: =IF(M$11=1,'Opening Balance Sheet'!$I$18,L18) -> 0 | N16: =IF(N$11=1,'Opening Balance Sheet'!$I$18,M18) -> 3567.123288 | O16: =IF(O$11=1,'Opening Balance Sheet'!$I$18,N18) -> 7803.667213 | P16: =IF(P$11=1,'Opening Balance Sheet'!$I$18,O18) -> 12081.47879 | Q16: =IF(Q$11=1,'Opening Balance Sheet'!$I$18,P18) -> 16401.28368 | R16: =IF(R$11=1,'Opening Balance Sheet'!$I$18,Q18) -> 20756.89377 | S16: =IF(S$11=1,'Opening Balance Sheet'!$I$18,R18) -> 25145.93692 | U16: =IFERROR(_xlfn.FORMULATEXT(J16),"") -> =IF(J$11=1,'Opening Balance Sheet'!$I$18,I18)
E17: Net cash flow | G17: US$'000 | J17: ='Cash Flow Statement'!J51 -> 4600 | K17: ='Cash Flow Statement'!K51 -> 8280 | L17: ='Cash Flow Statement'!L51 -> -12880 | M17: ='Cash Flow Statement'!M51 -> 3567.123288 | N17: ='Cash Flow Statement'!N51 -> 4236.543925 | O17: ='Cash Flow Statement'!O51 -> 4277.811581 | P17: ='Cash Flow Statement'!P51 -> 4319.804883 | Q17: ='Cash Flow Statement'!Q51 -> 4355.610096 | R17: ='Cash Flow Statement'!R51 -> 4389.043148 | S17: ='Cash Flow Statement'!S51 -> 4412.658644 | U17: ='Cash Flow Statement'!J51
D18: Cash | G18: US$'000 | J18: =SUM(J16:J17) -> 4600 | K18: =SUM(K16:K17) -> 12880 | L18: 0 | M18: 3567.123288 | N18: 7803.667213 | O18: 12081.47879 | P18: 16401.28368 | Q18: 20756.89377 | R18: 25145.93692 | S18: 29558.59557 | U18: =SUM(J16:J17)
D19: Accounts receivable | G19: US$'000 | J19: =Operations!J47 -> 0 | K19: =Operations!K47 -> 0 | L19: =Operations!L47 -> 0 | M19: =Operations!M47 -> 904.109589 | N19: =Operations!N47 -> 910.1147541 | O19: =Operations!O47 -> 920.4052603 | P19: =Operations!P47 -> 927.5253764 | Q19: =Operations!Q47 -> 933.9925259 | R19: =Operations!R47 -> 937.2621377 | S19: =Operations!S47 -> 945.0603373 | U19: =Operations!J47
D20: Other current assets | G20: US$'000
D21: Total current assets | G21: US$'000 | J21: =SUM(J18:J20) -> 4600 | K21: =SUM(K18:K20) -> 12880 | L21: 0 | M21: 4471.232877 | N21: 8713.781967 | O21: 13001.88405 | P21: 17328.80905 | Q21: 21690.8863 | R21: 26083.19906 | S21: 30503.6559 | U21: =SUM(J18:J20)
C23: Non-current assets
D24: PP&E | G24: =Currency -> US$'000
D25: Deferred tax assets | G25: =Currency -> US$'000
D26: Total non-current assets | G26: =Currency -> US$'000 | J26: =SUM(J24:J25) -> 0 | K26: =SUM(K24:K25) -> 0 | L26: 0 | M26: 0 | N26: 0 | O26: 0 | P26: 0 | Q26: 0 | R26: 0 | S26: 0 | U26: =SUM(J24:J25)
C28: Reserve accounts
D29: DSRA | G29: =Currency -> US$'000
D30: MRA | G30: =Currency -> US$'000
D31: Total reserve accounts | G31: =Currency -> US$'000 | J31: =SUM(J29:J30) -> 0 | K31: 0 | L31: 0 | M31: 0 | N31: 0 | O31: 0 | P31: 0 | Q31: 0 | R31: 0 | S31: 0 | U31: =SUM(J29:J30)
C33: Total assets | G33: =Currency -> US$'000 | J33: =J21+J26+J31 -> 4600 | K33: 12880 | L33: 0 | M33: 4471.232877 | N33: 8713.781967 | O33: 13001.88405 | P33: 17328.80905 | Q33: 21690.8863 | R33: 26083.19906 | S33: 30503.6559 | U33: =J21+J26+J31
C35: Current liabilities
D36: Accounts payable | G36: =Currency -> US$'000 | J36: =Operations!J71+Operations!J96 -> 0 | K36: =Operations!K71+Operations!K96 -> 0 | L36: =Operations!L71+Operations!L96 -> 0 | M36: =Operations!M71+Operations!M96 -> 271.2328767 | N36: =Operations!N71+Operations!N96 -> 265.0819672 | O36: =Operations!O71+Operations!O96 -> 260.4920548 | P36: =Operations!P71+Operations!P96 -> 255.2822137 | Q36: =Operations!Q71+Operations!Q96 -> 250.1765694 | R36: =Operations!R71+Operations!R96 -> 244.5031663 | S36: =Operations!S71+Operations!S96 -> 240.2695773 | U36: =Operations!J71+Operations!J96
D37: Dividends payable | G37: US$'000
D38: Interest payable | G38: US$'000
D39: Tax payable | G39: US$'000
D40: Other current liabilities | G40: US$'000
D41: Total current liabilities | G41: US$'000 | J41: =SUM(J36:J40) -> 0 | K41: =SUM(K36:K40) -> 0 | L41: 0 | M41: 271.2328767 | N41: 265.0819672 | O41: 260.4920548 | P41: 255.2822137 | Q41: 250.1765694 | R41: 244.5031663 | S41: 240.2695773 | U41: =SUM(J36:J40)
C43: Non-current liabilities
D44: Debt | G44: =Currency -> US$'000 | J44: =Construction!J68 -> 0 | K44: =Construction!K68 -> 6880 | L44: =Construction!L68 -> 0 | M44: =Construction!M68 -> 0 | N44: =Construction!N68 -> 0 | O44: =Construction!O68 -> 0 | P44: =Construction!P68 -> 0 | Q44: =Construction!Q68 -> 0 | R44: =Construction!R68 -> 0 | S44: =Construction!S68 -> 0 | U44: =Construction!J68
D45: Convertible debt | G45: =Currency -> US$'000 | J45: =Construction!J102 -> 0 | K45: =Construction!K102 -> 0 | L45: =Construction!L102 -> 0 | M45: =Construction!M102 -> 0 | N45: =Construction!N102 -> 0 | O45: =Construction!O102 -> 0 | P45: =Construction!P102 -> 0 | Q45: =Construction!Q102 -> 0 | R45: =Construction!R102 -> 0 | S45: =Construction!S102 -> 0 | U45: =Construction!J102
D46: Working capital facility | G46: =Currency -> US$'000
D47: Deferred tax liabilities | G47: =Currency -> US$'000
D48: Total non-current liabilities | G48: =Currency -> US$'000 | J48: =SUM(J44:J47) -> 0 | K48: =SUM(K44:K47) -> 6880 | L48: 0 | M48: 0 | N48: 0 | O48: 0 | P48: 0 | Q48: 0 | R48: 0 | S48: 0 | U48: =SUM(J44:J47)
C50: Total liabilities | G50: =Currency -> US$'000 | J50: =J41+J48 -> 0 | K50: =K41+K48 -> 6880 | L50: 0 | M50: 271.2328767 | N50: 265.0819672 | O50: 260.4920548 | P50: 255.2822137 | Q50: 250.1765694 | R50: 244.5031663 | S50: 240.2695773 | U50: =J41+J48
C52: Net assets | G52: =Currency -> US$'000 | J52: =J33-J50 -> 4600 | K52: =K33-K50 -> 6000 | L52: 0 | M52: 4200 | N52: 8448.7 | O52: 12741.392 | P52: 17073.52684 | Q52: 21440.70973 | R52: 25838.69589 | S52: 30263.38633 | U52: =J33-J50
C55: Equity
D56: Ordinary equity | G56: =Currency -> US$'000 | J56: =Construction!J54 -> 4600 | K56: =Construction!K54 -> 6000 | L56: =Construction!L54 -> 0 | M56: =Construction!M54 -> 0 | N56: =Construction!N54 -> 0 | O56: =Construction!O54 -> 0 | P56: =Construction!P54 -> 0 | Q56: =Construction!Q54 -> 0 | R56: =Construction!R54 -> 0 | S56: =Construction!S54 -> 0 | U56: =Construction!J54
E57: Opening retained profits | G57: US$'000 | J57: =IF(J$11=1,'Opening Balance Sheet'!$I$60,I60) -> 0 | K57: =IF(K$11=1,'Opening Balance Sheet'!$I$60,J60) -> 0 | L57: =IF(L$11=1,'Opening Balance Sheet'!$I$60,K60) -> 0 | M57: =IF(M$11=1,'Opening Balance Sheet'!$I$60,L60) -> 0 | N57: =IF(N$11=1,'Opening Balance Sheet'!$I$60,M60) -> 4200 | O57: =IF(O$11=1,'Opening Balance Sheet'!$I$60,N60) -> 8448.7 | P57: =IF(P$11=1,'Opening Balance Sheet'!$I$60,O60) -> 12741.392 | Q57: =IF(Q$11=1,'Opening Balance Sheet'!$I$60,P60) -> 17073.52684 | R57: =IF(R$11=1,'Opening Balance Sheet'!$I$60,Q60) -> 21440.70973 | S57: =IF(S$11=1,'Opening Balance Sheet'!$I$60,R60) -> 25838.69589 | U57: =IF(J$11=1,'Opening Balance Sheet'!$I$60,I60)
E58: NPAT | G58: US$'000 | J58: ='Income Statement'!J29 -> 0 | K58: ='Income Statement'!K29 -> 0 | L58: ='Income Statement'!L29 -> 0 | M58: ='Income Statement'!M29 -> 4200 | N58: ='Income Statement'!N29 -> 4248.7 | O58: ='Income Statement'!O29 -> 4292.692 | P58: ='Income Statement'!P29 -> 4332.13484 | Q58: ='Income Statement'!Q29 -> 4367.18289 | R58: ='Income Statement'!R29 -> 4397.986163 | S58: ='Income Statement'!S29 -> 4424.690433 | U58: ='Income Statement'!J29
A59: w | E59: Dividends declared | G59: US$'000
D60: Retained profits | G60: US$'000 | J60: =SUM(J57:J59) -> 0 | K60: =SUM(K57:K59) -> 0 | L60: 0 | M60: 4200 | N60: 8448.7 | O60: 12741.392 | P60: 17073.52684 | Q60: 21440.70973 | R60: 25838.69589 | S60: 30263.38633 | U60: =SUM(J57:J59)
D61: Total equity | G61: US$'000 | J61: =J56+J60 -> 4600 | K61: 6000 | L61: 0 | M61: 4200 | N61: 8448.7 | O61: 12741.392 | P61: 17073.52684 | Q61: 21440.70973 | R61: 25838.69589 | S61: 30263.38633 | U61: =J56+J60
C64: Checks | U64: =IFERROR(_xlfn.FORMULATEXT(J64),"") -> 
D66: PF error check | G66: =Boolean -> [1,0] | I66: =MAX(J66:S66) -> 0 | J66: =IF(ISERROR(J52-J61),1,0) -> 0 | K66: =IF(ISERROR(K52-K61),1,0) -> 0 | L66: 0 | M66: 0 | N66: 0 | O66: 0 | P66: 0 | Q66: 0 | R66: 0 | S66: 0 | U66: =IF(ISERROR(J52-J61),1,0)
D67: Balance check | G67: =Boolean -> [1,0] | I67: =MAX(J67:S67) -> 0 | J67: =IF(J66<>0,,(ROUND(J52-J61,Rounding_Accuracy)<>0)*1) -> 0 | K67: 0 | L67: 0 | M67: 0 | N67: 0 | O67: 0 | P67: 0 | Q67: 0 | R67: 0 | S67: 0 | U67: =IF(J66<>0,,(ROUND(J52-J61,Rounding_Accuracy)<>0)*1)
D68: Insolvency check | G68: =Boolean -> [1,0] | I68: 0 | J68: =IF(SUM(J66:J67)<>0,,(J52<0)*1) -> 0 | K68: =IF(SUM(K66:K67)<>0,,(K52<0)*1) -> 0 | L68: 0 | M68: 0 | N68: 0 | O68: 0 | P68: 0 | Q68: 0 | R68: 0 | S68: 0 | U68: =IF(SUM(J66:J67)<>0,,(J52<0)*1)

Sheet Cash Flow Statement
A1: =IF(ISERROR(RIGHT(CELL("filename",A1),LEN(CELL("filename",A1))-FIND("]",CELL("filename",A1)))), "", RIGHT(CELL("filename",A1),LEN(CELL("filename",A1))-FIND("]",CELL("filename",A1)))) -> Cash Flow Statement
A2: =Model_Name -> Model 08 - Opex Completed.xlsm
A3: Navigator
B4: Error Checks: | G4: =Overall_Error_Check -> 0
J5: =Timing!J5 -> 2024-06-30 | K5: =Timing!K5 -> 2025-06-30 | L5: =Timing!L5 -> 2026-06-30 | M5: =Timing!M5 -> 2027-06-30 | N5: =Timing!N5 -> 2028-06-30 | O5: =Timing!O5 -> 2029-06-30 | P5: =Timing!P5 -> 2030-06-30 | Q5: =Timing!Q5 -> 2031-06-30 | R5: =Timing!R5 -> 2032-06-30 | S5: =Timing!S5 -> 2033-06-30
C6: =Timing!C6 -> Start Date | J6: =Timing!J6 -> 2023-07-01 | K6: =Timing!K6 -> 2024-07-01 | L6: =Timing!L6 -> 2025-07-01 | M6: =Timing!M6 -> 2026-07-01 | N6: =Timing!N6 -> 2027-07-01 | O6: =Timing!O6 -> 2028-07-01 | P6: =Timing!P6 -> 2029-07-01 | Q6: =Timing!Q6 -> 2030-07-01 | R6: =Timing!R6 -> 2031-07-01 | S6: =Timing!S6 -> 2032-07-01
C7: =Timing!C7 -> End Date | J7: =Timing!J7 -> 2024-06-30 | K7: =Timing!K7 -> 2025-06-30 | L7: =Timing!L7 -> 2026-06-30 | M7: =Timing!M7 -> 2027-06-30 | N7: =Timing!N7 -> 2028-06-30 | O7: =Timing!O7 -> 2029-06-30 | P7: =Timing!P7 -> 2030-06-30 | Q7: =Timing!Q7 -> 2031-06-30 | R7: =Timing!R7 -> 2032-06-30 | S7: =Timing!S7 -> 2033-06-30
C8: =Timing!C8 -> Number of Days | J8: =Timing!J8 -> 366 | K8: =Timing!K8 -> 365 | L8: =Timing!L8 -> 365 | M8: =Timing!M8 -> 365 | N8: =Timing!N8 -> 366 | O8: =Timing!O8 -> 365 | P8: =Timing!P8 -> 365 | Q8: =Timing!Q8 -> 365 | R8: =Timing!R8 -> 366 | S8: =Timing!S8 -> 365
C9: =Timing!C9 -> Construction period | J9: =Timing!J9 -> 1 | K9: =Timing!K9 -> 2 | L9: =Timing!L9 -> 3 | M9: =Timing!M9 -> 0 | N9: =Timing!N9 -> 0 | O9: =Timing!O9 -> 0 | P9: =Timing!P9 -> 0 | Q9: =Timing!Q9 -> 0 | R9: =Timing!R9 -> 0 | S9: =Timing!S9 -> 0
C10: =Timing!C10 -> Operations period | J10: =Timing!J10 -> 0 | K10: =Timing!K10 -> 0 | L10: =Timing!L10 -> 0 | M10: =Timing!M10 -> 1 | N10: =Timing!N10 -> 2 | O10: =Timing!O10 -> 3 | P10: =Timing!P10 -> 4 | Q10: =Timing!Q10 -> 5 | R10: =Timing!R10 -> 6 | S10: =Timing!S10 -> 7
C11: =Timing!C11 -> Counter | J11: =Timing!J11 -> 1 | K11: =Timing!K11 -> 2 | L11: =Timing!L11 -> 3 | M11: =Timing!M11 -> 4 | N11: =Timing!N11 -> 5 | O11: =Timing!O11 -> 6 | P11: =Timing!P11 -> 7 | Q11: =Timing!Q11 -> 8 | R11: =Timing!R11 -> 9 | S11: =Timing!S11 -> 10
B13: =MAX($B$12:$B12)+1 -> 1 | C13: =A1 -> Cash Flow Statement
C15: Direct Cash Flow Statement | U15: =IFERROR(_xlfn.FORMULATEXT(J15),"") -> 
D17: Operating cash flow
E18: Cash receipts | G18: =Currency -> US$'000 | J18: =-Operations!J46 -> 0 | K18: =-Operations!K46 -> 0 | L18: =-Operations!L46 -> 0 | M18: =-Operations!M46 -> 4595.890411 | N18: =-Operations!N46 -> 5545.694835 | O18: =-Operations!O46 -> 5588.841494 | P18: =-Operations!P46 -> 5635.325924 | Q18: =-Operations!Q46 -> 5675.320716 | R18: =-Operations!R46 -> 5714.029428 | S18: =-Operations!S46 -> 5741.318852 | U18: =IFERROR(_xlfn.FORMULATEXT(J18),"") -> =-Operations!J46
F19: Direct cash payments | G19: US$'000 | J19: =Operations!J70 -> 0 | K19: =Operations!K70 -> 0 | L19: =Operations!L70 -> 0 | M19: =Operations!M70 -> -828.7671233 | N19: =Operations!N70 -> -1084.150909 | O19: =Operations!O70 -> -1061.029912 | P19: =Operations!P70 -> -1040.521041 | Q19: =Operations!Q70 -> -1019.71062 | R19: =Operations!R70 -> -999.9862796 | S19: =Operations!S70 -> -978.660208 | U19: =IFERROR(_xlfn.FORMULATEXT(J19),"") -> =Operations!J70
F20: Indirect cash payments | G20: US$'000 | J20: =Operations!J95 -> 0 | K20: =Operations!K95 -> 0 | L20: =Operations!L95 -> 0 | M20: =Operations!M95 -> -200 | N20: =Operations!N95 -> -225 | O20: =Operations!O95 -> -250 | P20: =Operations!P95 -> -275 | Q20: =Operations!Q95 -> -300 | R20: =Operations!R95 -> -325 | S20: =Operations!S95 -> -350 | U20: =Operations!J95
E21: Cash payments | G21: US$'000 | J21: =SUM(J19:J20) -> 0 | K21: =SUM(K19:K20) -> 0 | L21: 0 | M21: -1028.767123 | N21: -1309.150909 | O21: -1311.029912 | P21: -1315.521041 | Q21: -1319.71062 | R21: -1324.98628 | S21: -1328.660208 | U21: =SUM(J19:J20)
E22: Interest paid | G22: US$'000
E23: Tax paid | G23: US$'000
E24: Net Operating cash flow | G24: =Currency -> US$'000 | J24: =SUM(J18,J21:J23) -> 0 | K24: =SUM(K18,K21:K23) -> 0 | L24: 0 | M24: 3567.123288 | N24: 4236.543925 | O24: 4277.811581 | P24: 4319.804883 | Q24: 4355.610096 | R24: 4389.043148 | S24: 4412.658644 | U24: =SUM(J18,J21:J23)
D26: Investing cash flows
E27: Interest received | G27: =Currency -> US$'000
E28: Purchases of Non-Current Assets | G28: =Currency -> US$'000
E29: Net Investing cash flows | G29: =Currency -> US$'000 | J29: =SUM(J27:J28) -> 0 | K29: =SUM(K27:K28) -> 0 | L29: 0 | M29: 0 | N29: 0 | O29: 0 | P29: 0 | Q29: 0 | R29: 0 | S29: 0 | U29: =SUM(J27:J28)
D31: Financing cash flows
F32: Transfer to MRA | G32: =Currency -> US$'000
F33: Transfer from MRA | G33: US$'000
F34: Initial transfer to DSRA | G34: US$'000
F35: Transfer to DSRA | G35: US$'000
F36: Transfer from DSRA (Cashflow) | G36: US$'000
F37: Transfer from DSRA (Target) | G37: US$'000
E38: Reserve account movement | G38: US$'000 | J38: =SUM(J32:J37) -> 0 | K38: 0 | L38: 0 | M38: 0 | N38: 0 | O38: 0 | P38: 0 | Q38: 0 | R38: 0 | S38: 0 | U38: =SUM(J32:J37)
E39: Working capital facility drawdowns | G39: =Currency -> US$'000
E40: Working capital facility repayments | G40: US$'000
E41: Debt drawdowns | G41: US$'000 | J41: =Construction!J66 -> 0 | K41: =Construction!K66 -> 6880 | L41: =Construction!L66 -> 9120 | M41: =Construction!M66 -> 0 | N41: =Construction!N66 -> 0 | O41: =Construction!O66 -> 0 | P41: =Construction!P66 -> 0 | Q41: =Construction!Q66 -> 0 | R41: =Construction!R66 -> 0 | S41: =Construction!S66 -> 0 | U41: =Construction!J66
E42: Debt repayments | G42: US$'000 | J42: =Construction!J67 -> 0 | K42: =Construction!K67 -> 0 | L42: =Construction!L67 -> -16000 | M42: =Construction!M67 -> 0 | N42: =Construction!N67 -> 0 | O42: =Construction!O67 -> 0 | P42: =Construction!P67 -> 0 | Q42: =Construction!Q67 -> 0 | R42: =Construction!R67 -> 0 | S42: =Construction!S67 -> 0 | U42: =Construction!J67
E43: Cash sweep repayments | G43: US$'000
E44: Convertible debt drawdowns | G44: US$'000 | J44: =Construction!J100 -> 0 | K44: =Construction!K100 -> 0 | L44: =Construction!L100 -> 8801.04 | M44: =Construction!M100 -> 0 | N44: =Construction!N100 -> 0 | O44: =Construction!O100 -> 0 | P44: =Construction!P100 -> 0 | Q44: =Construction!Q100 -> 0 | R44: =Construction!R100 -> 0 | S44: =Construction!S100 -> 0 | U44: =Construction!J100
E45: Convertible debt interest paid | G45: US$'000 | U45: =IFERROR(_xlfn.FORMULATEXT(J45),"") -> 
E46: Convertible debt repayments | G46: US$'000 | J46: =Construction!J101 -> 0 | K46: =Construction!K101 -> 0 | L46: =Construction!L101 -> -8801.04 | M46: =Construction!M101 -> 0 | N46: =Construction!N101 -> 0 | O46: =Construction!O101 -> 0 | P46: =Construction!P101 -> 0 | Q46: =Construction!Q101 -> 0 | R46: =Construction!R101 -> 0 | S46: =Construction!S101 -> 0 | U46: =IFERROR(_xlfn.FORMULATEXT(J46),"") -> =Construction!J101
E47: Ordinary equity issuances | G47: US$'000 | J47: =SUM(Construction!J52:J53) -> 4600 | K47: =SUM(Construction!K52:K53) -> 1400 | L47: =SUM(Construction!L52:L53) -> -6000 | M47: =SUM(Construction!M52:M53) -> 0 | N47: =SUM(Construction!N52:N53) -> 0 | O47: =SUM(Construction!O52:O53) -> 0 | P47: =SUM(Construction!P52:P53) -> 0 | Q47: =SUM(Construction!Q52:Q53) -> 0 | R47: =SUM(Construction!R52:R53) -> 0 | S47: =SUM(Construction!S52:S53) -> 0 | U47: =SUM(Construction!J52:J53)
E48: Dividends paid | G48: US$'000
E49: Net Financing cash flows | G49: US$'000 | J49: =SUM(J38:J48) -> 4600 | K49: 8280 | L49: -12880 | M49: 0 | N49: 0 | O49: 0 | P49: 0 | Q49: 0 | R49: 0 | S49: 0 | U49: =SUM(J38:J48)
D51: Net increase / (decrease) in cash held | G51: =Currency -> US$'000 | J51: =J24+J29+J49 -> 4600 | K51: 8280 | L51: -12880 | M51: 3567.123288 | N51: 4236.543925 | O51: 4277.811581 | P51: 4319.804883 | Q51: 4355.610096 | R51: 4389.043148 | S51: 4412.658644 | U51: =J24+J29+J49

Sheet Lookup
A1: =IF(ISERROR(RIGHT(CELL("filename",A1),LEN(CELL("filename",A1))-FIND("]",CELL("filename",A1)))), "", RIGHT(CELL("filename",A1),LEN(CELL("filename",A1))-FIND("]",CELL("filename",A1)))) -> Lookup
A2: =Model_Name -> Model 08 - Opex Completed.xlsm
A3: Navigator
B4: Error Checks: | F4: =Overall_Error_Check -> 0
B6: =MAX($B$5:$B5)+1 -> 1 | C6: =A1&" Assumptions" -> Lookup Assumptions
C8: Year Lookups
D10: LU_Future_Years | F10: LU_Future_Years
D11: =OFFSET(Timing!$J$7,,ROWS($C$11:$C11)) -> 2025-06-30 | G11: =IFERROR(_xlfn.FORMULATEXT(D11),"") -> =OFFSET(Timing!$J$7,,ROWS($C$11:$C11))
D12: =OFFSET(Timing!$J$7,,ROWS($C$11:$C12)) -> 2026-06-30 | G12: =IFERROR(_xlfn.FORMULATEXT(D12),"") -> =OFFSET(Timing!$J$7,,ROWS($C$11:$C12))
D13: =OFFSET(Timing!$J$7,,ROWS($C$11:$C13)) -> 2027-06-30 | G13: =OFFSET(Timing!$J$7,,ROWS($C$11:$C13))
D14: =OFFSET(Timing!$J$7,,ROWS($C$11:$C14)) -> 2028-06-30 | G14: =OFFSET(Timing!$J$7,,ROWS($C$11:$C14))
D15: =OFFSET(Timing!$J$7,,ROWS($C$11:$C15)) -> 2029-06-30 | G15: =OFFSET(Timing!$J$7,,ROWS($C$11:$C15))
D16: =OFFSET(Timing!$J$7,,ROWS($C$11:$C16)) -> 2030-06-30 | G16: =OFFSET(Timing!$J$7,,ROWS($C$11:$C16))
D17: =OFFSET(Timing!$J$7,,ROWS($C$11:$C17)) -> 2031-06-30 | G17: =OFFSET(Timing!$J$7,,ROWS($C$11:$C17))
D18: =OFFSET(Timing!$J$7,,ROWS($C$11:$C18)) -> 2032-06-30 | G18: =OFFSET(Timing!$J$7,,ROWS($C$11:$C18))
D19: =OFFSET(Timing!$J$7,,ROWS($C$11:$C19)) -> 2033-06-30 | G19: =OFFSET(Timing!$J$7,,ROWS($C$11:$C19))
D20: Actuals Throughout | F20: Actuals_Throughout
C23: Debt lookups
D25: LU_Repayment | F25: LU_Repayment
D26: Annuity | F26: Annuity
D27: DSCR Sculpted | F27: DSCR_Sculpted
C30: Generation profile lookups
D32: LU_Gen_Profiles | F32: LU_Gen_Profiles
D33: P10
D34: P50
D35: P90
C38: Timing of Discount Rates
D40: LU_Timing | F40: LU_Timing
D41: Start | F41: Start
D42: Middle | F42: Middle
D43: End | F43: End
C46: Yes or No
D48: LU_Yes_or_No | F48: LU_Yes_or_No
D49: Yes | F49: Yes
D50: No | F50: No

Sheet Error Checks
A1: =IF(ISERROR(RIGHT(CELL("filename",A1),LEN(CELL("filename",A1))-FIND("]",CELL("filename",A1)))), "", RIGHT(CELL("filename",A1),LEN(CELL("filename",A1))-FIND("]",CELL("filename",A1)))) -> Error Checks
A2: =Model_Name -> Model 08 - Opex Completed.xlsm
A3: Navigator
B4: Error Checks: | F4: =Overall_Error_Check -> 0
B6: =MAX($B$5:$B5)+1 -> 1 | C6: Error Checks
C8: Summary of Errors
D10: Assumptions
E12: Balance Sheet has no errors | I12: =HL_BS_Errors -> 0
E13: Balance Sheet balances | I13: =HL_BS_Balance -> 0
E14: Insolvency Check for Balance Sheet | I14: =HL_BS_Insolvency -> 0
E15: Opening Balance Sheet has no errors | I15: =HL_Op_BS_Errors -> 0
E16: Opening Balance Sheet balances | I16: =HL_Op_BS_Balance -> 0
E17: Insolvency Check for Opening Balance Sheet | I17: =HL_Op_BS_Insolvency -> 0
E18: Cash Flow Statement has no errors
E19: Cash Flow Statement reconciles
E20: Cash Flow Waterfall reconciles
E21: Construction sources and uses of funds reconciles
E22: Operations sources and uses of funds reconciles
E23: DSRA balance is met
E24: DSRA is solved
E28: =C8 -> Summary of Errors | I28: =MIN(1,SUM(I11:I15)) -> 0

Sheet Change Log
A1: =IF(ISERROR(RIGHT(CELL("filename",A1),LEN(CELL("filename",A1))-FIND("]",CELL("filename",A1)))), "", RIGHT(CELL("filename",A1),LEN(CELL("filename",A1))-FIND("]",CELL("filename",A1)))) -> Change Log
A2: =Model_Name -> Model 08 - Opex Completed.xlsm
A3: Navigator
B4: Error Checks: | F4: =Overall_Error_Check -> 0
B6: =MAX($B$5:$B5)+1 -> 1 | C6: =A1 -> Change Log
C8: Summary
F10: Date | G10: Model Version | H10: Details of change | I10: Worksheet Reference | J10: Row, column, cell reference | K10: Author
F11: 2013-05-21 | G11: Untitled attachment 00059.xlsm | H11: I changed it | I11: Change Log | J11: F11 | K11: LB
F12: 2013-05-21 | G12: Untitled attachment 00059.xlsm | H12: So did I. | I12: Timing | J12: A4 | K12: LB
F13: 2013-05-21 | G13: Untitled attachment 00059.xlsm | H13: And me. | I13: Navigator | J13: B9 | K13: Dave
